{"text_format":"3","workbook":"xlsx","n_sheets":5,"sheets":["Data Entry","Cover Page - do not edit","Payments by Payee","Payments by Project","Sheet2"],"not_rendered":{"external_links":2,"defined_names":8},"read":"whole","date_system":"1900"}

{"sheet":"Data Entry","index":0,"n_rows":50,"n_cols":12,"rows_kept":50,"hidden":true,"merged":[[3,0,3,4],[5,0,5,4],[7,0,7,1],[8,0,8,1],[9,0,10,0],[11,0,11,1],[13,0,13,4],[15,0,15,1],[16,0,16,1],[18,0,18,4],[20,0,20,1],[21,0,21,1],[23,0,23,1],[24,0,24,1],[26,0,26,4],[28,0,28,1],[29,0,29,1],[30,0,30,1],[32,0,32,4],[35,0,35,2],[37,0,37,1],[38,0,38,1],[39,0,39,1],[41,0,41,1],[42,0,42,1],[43,0,43,1],[47,0,47,4],[49,0,49,4]]}
["Data Entry Tab - do not print or otherwise include in ESTMA Report",{"$nulls":10},1]
[]
["General Instructions"]
["Information entered in these cells will automatically populate mandatory cells in the cover page and payments tabs. Do not include this tab in your final ESTMA report published online. Once completed, right click on the \"Data Entry\" tab at the bottom of the worksheet and select \"hide\" to avoid printing the Data Entry page (do not delete the tab). Should you wish to bring the tab back, you can right click on any tab, select \"unhide\", and chose \"Data Entry\". "]
[]
["Reporting Entity Information"]
[]
["Reporting Entity Legal Name",null,"CNOOC Limited",null,"Enter the full legal name of the Reporting Entity."]
["ESTMA ID Number",null,"E645951",null,"Enter the ESTMA ID number that was provided when the Reporting Entity enrolled with Natural Resources Canada (NRCan). The formatting for all ESTMA IDs is \"E\" followed by a 6 digit number (e.g., E######). Reporting Entities that have not yet enrolled should do so as soon as possible. Visit the following link to enroll: www.nrcan.gc.ca/mining-materials/estma/18186. "]
["Reporting Year","Start","2018-01-01",null,"Enter the exact date of  the start of the Reporting Entity's financial year as: YYYY-MM-DD."]
[null,"End","2018-12-31",null,"Enter the exact date of the end of the Reporting Entity's financial year as YYYY-MM-DD. \nThe reporting year should represent a full 12 month financial year. If the reporting year is less than 12 full months, a rational for the shortened year must be included in the submission email."]
["Other Non-Reporting Entities Included in the Report",{"$nulls":3},"This field is optional. You may enter the name of any non-Reporting Entity subsidiaries that have their payments disclosed in the report in this field. Reporting Entity subsidiaries included in a consolidated report are entered below."]
[]
["Consolidation"]
[]
["Does this report include payments made by other Reporting Entities",null,"Yes",null,"Select the cell and click on the arrow that appears at the bottom right of the cell. Select \"yes\" if the ESTMA report contains payments that are made by subsidiaries that are Reporting Entities in their own right. Please review the Act and Technical Reporting Specifications to see if you qualify to use consolidation. Selecting \"yes\" will open an additional field where subsidiary information can be entered."]
[{"$f":"IF($C$16=\"yes\",\"Additional Subsidiary Reporting Entities Included\",\"\")","v":"Additional Subsidiary Reporting Entities Included"},null,"CNOOC Petroleum North America ULC E900333, CNOOC Canada Energy Ltd. E231597",null,"Please enter the names and ESTMA identification Numbers for every Reporting Entity, beyond the Reporting Entity submitting the report, whose payments have been included in this submission.  The names & ESTMA Identification Numbers must separated by comas (e.g. E123456 Sub Reporting Entity 1, E234567 Sub Reporting Entity 2, etc.)."]
[]
["Report Information"]
[]
["Currency of the Report",null,"CNY",null,"Select the currency of the report from the pick list (must be in Canadian dollars, or in the currency the Reporting Entity uses in its consolidated financial statements). Reports must only use one type of currency."]
["Date Report Submitted",null,"2019-05-24",null,"Enter the date the report is submitted to NRCan in the format YYYY-MM-DD."]
[]
["Link to the Report",null,"http://www.cnoocltd.com/attach/0/09145dab71744aa6a1ccdfd4fcfa8e8e.xlsx",null,"Enter the web link to the ESTMA report. The link must lead directly to the report or to a landing page where the ESTMA report is clearly identified. The report must be publicly available online for five years. NRCan must be notified if the link provided is changed or invalid at any point in time."]
[{"$f":"IF('Cover Page - do not edit'!L1=2,\"Report Version\",\"\")","v":""},{"$nulls":3},{"$f":"IF('Cover Page - do not edit'!$L$1=2,\"Select the cell and click on the arrow to enter the version number of this report (e.g., first amendment would be entered as version 2).\",\"\")","v":""}]
[]
["Substitution"]
[]
["Is this a Substituted Report",null,"No",null,"Select the cell and click on the arrow that appears at the bottom right of the cell. Select \"yes\" if this report is being submitted under a substitution determination. A listing of jurisdictions which have substitutable reporting requirements, as well as the process for submitting a substituted report can be found at the following link: www.nrcan.gc.ca/mining-materials/estma/18196."]
[{"$f":"IF($C$29=\"Yes\",\"Original Jurisdiction of the Report\",\"\")","v":""},{"$nulls":3},{"$f":"IF($C$29=\"yes\",\"Enter the jurisdiction under which the report was originally submitted.\",\"\")","v":""}]
[{"$f":"IF($C$29=\"Yes\",\"Due date in other jurisdiction\",\"\")","v":""},{"$nulls":3},{"$f":"IF($C$29=\"yes\",\"Enter the date when the report was due in the above jurisdiction in the format YYYY-MM-DD.\",\"\")","v":""}]
[]
["Attestation"]
[]
["Attestation options:"]
["By Reporting Entity: In accordance with the requirements of the ESTMA, and in particular section 9 thereof, I attest I have reviewed the information contained in the ESTMA report for the entity(ies) listed above. Based on my knowledge, and having exercised reasonable diligence, the information in the ESTMA report is true, accurate and complete in all material respects for the purposes of the Act, for the reporting year listed above. ",{"$nulls":3},"Through Independent Audit: In accordance with the requirements of the ESTMA, and in particular section 9 thereof, I attest that I engaged an independent auditor to undertake an audit of the ESTMA report for the entity(ies) and reporting year  listed above. Such an audit was conducted in accordance with the Technical Reporting Specifications issued by Natural Resources Canada for independent attestation of ESTMA reports.   \n\nThe auditor expressed an unmodified opinion, dated [ENTER DATE: YYYY-MM-DD], on the ESTMA report for the entity(ies) and period listed above.\nThe independent auditor’s report can be found at [INSERT WEBLINK TO AUDIT OPINION POSTED ONLINE – link should be on same page as report link]. "]
[]
["Attestation Type Selected",null,"By Reporting Entity",null,"Select the cell and click on the arrow that appears at the bottom right of the cell. Please note that no modifications can be made to the language of the attestation."]
[{"$f":"IF($C$38=\"Through Independent Audit\",\"Date of Audit Opinion\",\"\")","v":""},{"$nulls":3},{"$f":"IF($C$38=\"Through Independent Audit\",\"Enter the date of the audit opinion.\",\"\")","v":""}]
[{"$f":"IF($C$38=\"Through Independent Audit\",\"Audit Report Location\",\"\")","v":""},{"$nulls":3},{"$f":"IF(C38=\"Through independent audit\",\"The audit report may be  attached to the end of the ESTMA report, or a link to the website where the auditor's report is posted can be provided. Please indicate 'At End of Report,' or provide the audit report's website address.\",\"\")","v":""}]
[]
["Full Name of Director or Officer of Reporting Entity:",null,"Weizhi Xie",null,"Note: A physical signature is not required."]
["Position Title:",null,"Chief Financial Officer",null,"Attestor must be a Director or an Officer of the Reporting Entity.  "]
["Date:",null,"2019-05-24",null,"Enter date of attestation in YYYY-MM-DD format."]
[]
["Next Steps:"]
[]
["1. Right click on the \"Data Entry\" Tab and select hide to avoid printing the Data Entry page (do not delete the tab). Should you wish to bring the tab back, you can right click on any tab and select unhide, then chose Data Entry."]
[]
["2. Proceed with entering the payment information in the Payments by Payee and Payments by Project tabs."]

{"sheet":"Cover Page - do not edit","index":1,"n_rows":21,"n_cols":12,"rows_kept":21,"merged":[[0,0,0,6],[0,7,2,7],[1,1,1,6],[3,0,4,0],[3,1,4,2],[3,3,4,4],[3,5,3,6],[4,5,4,6],[5,1,5,6],[6,0,6,6],[7,1,7,6],[8,0,8,6],[9,1,9,2],[9,3,9,5],[10,0,10,6],[12,0,16,6],[19,1,19,4],[19,5,20,5],[19,6,20,6],[20,1,20,4]]}
["Extractive Sector Transparency Measures Act - Annual Report",{"$nulls":10},1]
["Reporting Entity Name",{"$f":"IF('Data Entry'!C8=\"\",\"\",'Data Entry'!C8)","v":"CNOOC Limited"}]
["Reporting Year","From",{"$f":"IF('Data Entry'!C10=\"\",\"\",'Data Entry'!C10)","v":"2018-01-01"},"To:",{"$f":"IF('Data Entry'!C11=\"\",\"\",'Data Entry'!C11)","v":"2018-12-31"},"Date submitted",{"$f":"IF('Data Entry'!C22=\"\",\"\",'Data Entry'!C22)","v":"2019-05-24"}]
["Reporting Entity ESTMA Identification Number",{"$f":"IF('Data Entry'!C9=\"\",\"\",'Data Entry'!C9)","v":"E645951"},{"$nulls":3},{"$f":"IF(L1=1,\"\",\"Report Version\")","v":""}]
[{"$nulls":5},{"$f":"IF(L1=1,\"\",IF('Data Entry'!C25=\"\",\"Enter Version Number of Report\",'Data Entry'!C25))","v":""}]
["Other Subsidiaries Included \n(optional field)",{"$f":"IF('Data Entry'!C12=\"\",\"\",'Data Entry'!C12)","v":""}]
[]
[{"$f":"IF('Data Entry'!C16=\"yes\",\"For Consolidated Reports - Subsidiary Reporting Entities Included in Report:\",\"Not Consolidated\")","v":"For Consolidated Reports - Subsidiary Reporting Entities Included in Report:"},{"$f":"IF('Data Entry'!C16=\"yes\",IF('Data Entry'!C17=\"\",\"\",'Data Entry'!C17),\"\")","v":"CNOOC Petroleum North America ULC E900333, CNOOC Canada Energy Ltd. E231597"}]
[]
[{"$f":"IF('Data Entry'!C29=\"yes\",\"For Substituted Reports - Jurisdiction in which the Transparency Report was Originally Filed:\",\"Not Substituted\")","v":"Not Substituted"},{"$f":"IF('Data Entry'!C29=\"yes\",IF('Data Entry'!C30=\"\",\"\",'Data Entry'!C30),\"\")","v":""},null,{"$f":"IF('Data Entry'!C29=\"yes\",\"Report Due Date in Other Jurisdiction\",\"\")","v":""},null,null,{"$f":"IF('Data Entry'!C29=\"yes\",IF('Data Entry'!C31=\"\",\"\",'Data Entry'!C31),\"\")","v":""}]
[]
[{"$f":"IF('Data Entry'!C38=\"By Reporting Entity\",\"Attestation by Reporting Entity\",\"Attestation Through Independent Audit\")","v":"Attestation by Reporting Entity"}]
[{"$f":"IF('Data Entry'!C38=\"By Reporting Entity\",RIGHT('Data Entry'!A36:C36,LEN('Data Entry'!A36:C36)-21),MID('Data Entry'!E36,28,452)&IF('Data Entry'!C39=\"\",\"YYYY-MM-DD\",TEXT('Data Entry'!C39,\"yyyy-mm-dd\"))&\", on the ESTMA Report for the entity(ies) and period listed above.\nThe independent auditor's report can be found at \"&'Data Entry'!C40&\".\")","v":"In accordance with the requirements of the ESTMA, and in particular section 9 thereof, I attest I have reviewed the information contained in the ESTMA report for the entity(ies) listed above. Based on my knowledge, and having exercised reasonable diligence, the information in the ESTMA report is true, accurate and complete in all material respects for the purposes of the Act, for the reporting year listed above. "}]
[]
[]
[]
[]
[]
[]
["Full Name of Director or Officer of Reporting Entity",{"$f":"IF('Data Entry'!C42=\"\",\"\",'Data Entry'!C42)","v":"Weizhi Xie"},{"$nulls":3},"Date",{"$f":"IF('Data Entry'!C44=\"\",\"\",'Data Entry'!C44)","v":"2019-05-24"}]
["Position Title",{"$f":"IF('Data Entry'!C43=\"\",\"\",'Data Entry'!C43)","v":"Chief Financial Officer"}]

{"sheet":"Payments by Payee","index":2,"n_rows":310,"n_cols":101,"rows_kept":310,"merged":[[0,0,2,11],[4,1,4,5],[4,7,4,8],[5,1,5,5],[5,7,5,8],[6,1,6,5],[6,7,6,8],[7,0,7,11],[85,1,85,11],[86,0,86,10],[87,0,87,10],[88,0,88,10],[89,0,89,10]]}
["Extractive Sector Transparency Measures Act - Annual Report",{"$nulls":27},"Canada",{"$nulls":71},"CAD"]
[{"$nulls":28},"Canada -Alberta",{"$nulls":71},"USD"]
[{"$nulls":28},"Canada -British Columbia",{"$nulls":71},"AED"]
["Reporting Year","From:",{"$f":"'Cover Page - do not edit'!C3","v":"2018-01-01"},"To: ",{"$f":"'Cover Page - do not edit'!E3","v":"2018-12-31"},{"$nulls":23},"Canada -Manitoba",{"$nulls":71},"ANG"]
["Reporting Entity Name",{"$f":"'Cover Page - do not edit'!B2:G2","v":"CNOOC Limited"},{"$nulls":4},"Currency of the Report",{"$f":"IF('Data Entry'!C21=\"\",\"\",'Data Entry'!C21)","v":"CNY"},{"$nulls":20},"Canada -New Brunswick",{"$nulls":71},"AUD"]
["Reporting Entity ESTMA Identification Number",{"$f":"'Cover Page - do not edit'!B4","v":"E645951"},{"$nulls":26},"Canada -Newfoundland and Labrador",{"$nulls":71},"CDF"]
["Subsidiary Reporting Entities (if necessary)",{"$f":"'Cover Page - do not edit'!B8:G8","v":"CNOOC Petroleum North America ULC E900333, CNOOC Canada Energy Ltd. E231597"},{"$nulls":26},"Canada -Northwest Territories",{"$nulls":71},"CHE"]
["Payments by Payee",{"$nulls":27},"Canada -Nova Scotia",{"$nulls":71},"CHF"]
["Country","Payee Name1","Departments, Agency, etc… within Payee that Received Payments2","Taxes","Royalties","Fees","Production Entitlements","Bonuses","Dividends","Infrastructure Improvement Payments","Total Amount paid to Payee","Notes34",{"$nulls":16},"Canada -Nunavut",{"$nulls":71},"CHW"]
["China","Government of China","Tax Authorities",{"v":17663860000,"d":"17,663,860,000"},{"v":688120000,"d":"688,120,000"},0,0,0,0,0,{"$f":"IF(SUM(Table2[[#This Row],[Taxes]:[Infrastructure Improvement Payments]])=0,\"\",SUM(Table2[[#This Row],[Taxes]:[Infrastructure Improvement Payments]]))","v":{"v":18351980000,"d":"18,351,980,000"}},"Taxes mainly include income tax, resource tax and production tax and so on.",{"$nulls":16},"Canada -Ontario",{"$nulls":71},"CLF"]
["China","Government of China","Ministry of Finance ",{"v":2036250000,"d":"2,036,250,000"},0,0,{"v":1202030000,"d":"1,202,030,000"},0,0,0,{"$f":"IF(SUM(Table2[[#This Row],[Taxes]:[Infrastructure Improvement Payments]])=0,\"\",SUM(Table2[[#This Row],[Taxes]:[Infrastructure Improvement Payments]]))","v":{"v":3238280000,"d":"3,238,280,000"}},{"$nulls":17},"Canada -Prince Edward Island",{"$nulls":71},"CLP"]
["China","Government of China","State Oceanic Administration",0,0,{"v":62420000,"d":"62,420,000"},0,0,0,0,{"$f":"IF(SUM(Table2[[#This Row],[Taxes]:[Infrastructure Improvement Payments]])=0,\"\",SUM(Table2[[#This Row],[Taxes]:[Infrastructure Improvement Payments]]))","v":{"v":62420000,"d":"62,420,000"}},"Mainly include marine use fees",{"$nulls":16},"Canada -Saskatchewan",{"$nulls":71},"COP"]
["China","Government of China","Customs",{"v":26980000,"d":"26,980,000"},0,0,0,0,0,0,{"$f":"IF(SUM(Table2[[#This Row],[Taxes]:[Infrastructure Improvement Payments]])=0,\"\",SUM(Table2[[#This Row],[Taxes]:[Infrastructure Improvement Payments]]))","v":{"v":26980000,"d":"26,980,000"}},{"$nulls":17},"Canada -Yukon",{"$nulls":71},"COU"]
["China","Government of China","Competent Administrative Departments for Environmental Protection",0,0,{"v":1240000,"d":"1,240,000"},0,0,0,0,{"$f":"IF(SUM(Table2[[#This Row],[Taxes]:[Infrastructure Improvement Payments]])=0,\"\",SUM(Table2[[#This Row],[Taxes]:[Infrastructure Improvement Payments]]))","v":{"v":1240000,"d":"1,240,000"}},{"$nulls":17},"Afghanistan",{"$nulls":71},"CRC"]
["China","Government of China","Fishery Administrative Department",0,0,{"v":10060000,"d":"10,060,000"},0,0,0,0,{"$f":"IF(SUM(Table2[[#This Row],[Taxes]:[Infrastructure Improvement Payments]])=0,\"\",SUM(Table2[[#This Row],[Taxes]:[Infrastructure Improvement Payments]]))","v":{"v":10060000,"d":"10,060,000"}},{"$nulls":17},"Åland Islands",{"$nulls":71},"CUC"]
["Australia","Government of Australia","Australian Taxation Office(ATO)",{"v":209480000,"d":"209,480,000"},0,0,0,0,0,0,{"$f":"IF(SUM(Table2[[#This Row],[Taxes]:[Infrastructure Improvement Payments]])=0,\"\",SUM(Table2[[#This Row],[Taxes]:[Infrastructure Improvement Payments]]))","v":{"v":209480000,"d":"209,480,000"}},{"$nulls":17},"Albania",{"$nulls":71},"CUP"]
["Australia","Government of Australia","Department of Mining and Petroleum(DMP)",0,{"v":107220000,"d":"107,220,000"},0,0,0,0,0,{"$f":"IF(SUM(Table2[[#This Row],[Taxes]:[Infrastructure Improvement Payments]])=0,\"\",SUM(Table2[[#This Row],[Taxes]:[Infrastructure Improvement Payments]]))","v":{"v":107220000,"d":"107,220,000"}},{"$nulls":17},"Algeria",{"$nulls":71},"CVE"]
["Congo","Government of Congo","HUREAU DE ENREGISTEMENT DES DOMAINES ETDU TIMBRE DE POINTE-NOIRE CENTRE(EDT)",{"v":240000,"d":"240,000"},0,0,0,0,0,0,{"$f":"IF(SUM(Table2[[#This Row],[Taxes]:[Infrastructure Improvement Payments]])=0,\"\",SUM(Table2[[#This Row],[Taxes]:[Infrastructure Improvement Payments]]))","v":{"v":240000,"d":"240,000"}},{"$nulls":17},"American Samoa",{"$nulls":71},"CZK"]
["Congo","Government of Congo","MINISTERE DES HYDROCARBURES DE LA REPUBLIQUE DU CONGO",0,{"v":10000,"d":"10,000"},0,0,0,0,0,{"$f":"IF(SUM(Table2[[#This Row],[Taxes]:[Infrastructure Improvement Payments]])=0,\"\",SUM(Table2[[#This Row],[Taxes]:[Infrastructure Improvement Payments]]))","v":{"v":10000,"d":"10,000"}},{"$nulls":17},"Andorra",{"$nulls":71},"DJF"]
["Congo","Government of Congo","Société Nationale des Pétroles du Congo",0,0,{"v":400000,"d":"400,000"},0,0,0,0,{"$f":"IF(SUM(Table2[[#This Row],[Taxes]:[Infrastructure Improvement Payments]])=0,\"\",SUM(Table2[[#This Row],[Taxes]:[Infrastructure Improvement Payments]]))","v":{"v":400000,"d":"400,000"}}]
["Congo","Government of Congo","Ministry of Hydrocarbons, Republic of Congo",0,0,{"v":1650000,"d":"1,650,000"},0,0,0,0,{"$f":"IF(SUM(Table2[[#This Row],[Taxes]:[Infrastructure Improvement Payments]])=0,\"\",SUM(Table2[[#This Row],[Taxes]:[Infrastructure Improvement Payments]]))","v":{"v":1650000,"d":"1,650,000"}}]
["Indonesia","Government of Indonesia","Director General of Tax(DGT)",{"v":869180000,"d":"869,180,000"},0,0,0,0,0,0,{"$f":"IF(SUM(Table2[[#This Row],[Taxes]:[Infrastructure Improvement Payments]])=0,\"\",SUM(Table2[[#This Row],[Taxes]:[Infrastructure Improvement Payments]]))","v":{"v":869180000,"d":"869,180,000"}}]
["Uganda","Government of Uganda","Ministry of Energy&Mineral Department",0,0,{"v":2140000,"d":"2,140,000"},0,0,0,0,{"$f":"IF(SUM(Table2[[#This Row],[Taxes]:[Infrastructure Improvement Payments]])=0,\"\",SUM(Table2[[#This Row],[Taxes]:[Infrastructure Improvement Payments]]))","v":{"v":2140000,"d":"2,140,000"}}]
["Trinidad and Tobago","Government of Trinidad and Tobago","The Ministry of Energy and Energy Industries",0,0,{"v":2640000,"d":"2,640,000"},0,0,0,0,{"$f":"IF(SUM(Table2[[#This Row],[Taxes]:[Infrastructure Improvement Payments]])=0,\"\",SUM(Table2[[#This Row],[Taxes]:[Infrastructure Improvement Payments]]))","v":{"v":2640000,"d":"2,640,000"}}]
["Equatorial Guinea","Government of Equatorial Guinea","emsegel",0,0,{"v":380000,"d":"380,000"},0,0,0,0,{"$f":"IF(SUM(Table2[[#This Row],[Taxes]:[Infrastructure Improvement Payments]])=0,\"\",SUM(Table2[[#This Row],[Taxes]:[Infrastructure Improvement Payments]]))","v":{"v":380000,"d":"380,000"}}]
["Equatorial Guinea","Government of Equatorial Guinea","instituto tecnologico nacional",0,0,{"v":400000,"d":"400,000"},0,0,0,0,{"$f":"IF(SUM(Table2[[#This Row],[Taxes]:[Infrastructure Improvement Payments]])=0,\"\",SUM(Table2[[#This Row],[Taxes]:[Infrastructure Improvement Payments]]))","v":{"v":400000,"d":"400,000"}}]
["Equatorial Guinea","Government of Equatorial Guinea","tesoreria general del estado",0,0,{"v":1160000,"d":"1,160,000"},0,0,0,0,{"$f":"IF(SUM(Table2[[#This Row],[Taxes]:[Infrastructure Improvement Payments]])=0,\"\",SUM(Table2[[#This Row],[Taxes]:[Infrastructure Improvement Payments]]))","v":{"v":1160000,"d":"1,160,000"}}]
["Mexico","Government of Mexico","SAT (Tax Administration System)",{"v":25050000,"d":"25,050,000"},0,0,0,0,0,0,{"$f":"IF(SUM(Table2[[#This Row],[Taxes]:[Infrastructure Improvement Payments]])=0,\"\",SUM(Table2[[#This Row],[Taxes]:[Infrastructure Improvement Payments]]))","v":{"v":25050000,"d":"25,050,000"}}]
["Mexico","Government of Mexico","FMP (Mexico Petroleum Fund for Stabilization and Development )",0,0,{"v":18980000,"d":"18,980,000"},0,0,0,0,{"$f":"IF(SUM(Table2[[#This Row],[Taxes]:[Infrastructure Improvement Payments]])=0,\"\",SUM(Table2[[#This Row],[Taxes]:[Infrastructure Improvement Payments]]))","v":{"v":18980000,"d":"18,980,000"}}]
["Brazil","Government of Brazil","Federal Tax Authority of Brazil",{"v":2070000,"d":"2,070,000"},{"v":66450000,"d":"66,450,000"},0,0,0,0,0,{"$f":"IF(SUM(Table2[[#This Row],[Taxes]:[Infrastructure Improvement Payments]])=0,\"\",SUM(Table2[[#This Row],[Taxes]:[Infrastructure Improvement Payments]]))","v":{"v":68520000,"d":"68,520,000"}}]
["Brazil","Government of Brazil","National Agency of Petroleum, Natural Gas and Biofuels",0,0,0,0,{"v":264290000,"d":"264,290,000"},0,0,{"$f":"IF(SUM(Table2[[#This Row],[Taxes]:[Infrastructure Improvement Payments]])=0,\"\",SUM(Table2[[#This Row],[Taxes]:[Infrastructure Improvement Payments]]))","v":{"v":264290000,"d":"264,290,000"}}]
["United States of America","United States Federal Government","Bureau of Safety & Environmental Enforcement (BSEE)",0,0,{"v":130000,"d":"130,000"},0,0,0,0,{"$f":"IF(SUM(Table2[[#This Row],[Taxes]:[Infrastructure Improvement Payments]])=0,\"\",SUM(Table2[[#This Row],[Taxes]:[Infrastructure Improvement Payments]]))","v":{"v":130000,"d":"130,000"}}]
["United States of America","United States Federal Government","Minerals Management Services (MMS)",0,{"v":116930000,"d":"116,930,000"},0,0,0,0,0,{"$f":"IF(SUM(Table2[[#This Row],[Taxes]:[Infrastructure Improvement Payments]])=0,\"\",SUM(Table2[[#This Row],[Taxes]:[Infrastructure Improvement Payments]]))","v":{"v":116930000,"d":"116,930,000"}}]
["United States of America","State of Colorado",null,{"v":3610000,"d":"3,610,000"},0,0,0,0,0,0,{"$f":"IF(SUM(Table2[[#This Row],[Taxes]:[Infrastructure Improvement Payments]])=0,\"\",SUM(Table2[[#This Row],[Taxes]:[Infrastructure Improvement Payments]]))","v":{"v":3610000,"d":"3,610,000"}}]
["United States of America","State of Texas",null,{"v":292550000,"d":"292,550,000"},{"v":7720000,"d":"7,720,000"},0,0,0,0,0,{"$f":"IF(SUM(Table2[[#This Row],[Taxes]:[Infrastructure Improvement Payments]])=0,\"\",SUM(Table2[[#This Row],[Taxes]:[Infrastructure Improvement Payments]]))","v":{"v":300270000,"d":"300,270,000"}}]
["United States of America","State of Wyoming",null,{"v":63750000,"d":"63,750,000"},0,0,0,0,0,0,{"$f":"IF(SUM(Table2[[#This Row],[Taxes]:[Infrastructure Improvement Payments]])=0,\"\",SUM(Table2[[#This Row],[Taxes]:[Infrastructure Improvement Payments]]))","v":{"v":63750000,"d":"63,750,000"}}]
["United States of America","United States Federal Government","Office of Natural Resource Revenue (ONRR)",0,0,{"v":2300000,"d":"2,300,000"},0,0,0,0,{"$f":"IF(SUM(Table2[[#This Row],[Taxes]:[Infrastructure Improvement Payments]])=0,\"\",SUM(Table2[[#This Row],[Taxes]:[Infrastructure Improvement Payments]]))","v":{"v":2300000,"d":"2,300,000"}}]
["United States of America","UNIVERSITY OF UTAH- ENERGY & GEOSCI","UNIVERSITY OF UTAH- ENERGY & GEOSCI",0,0,{"v":1500000,"d":"1,500,000"},0,0,0,0,{"$f":"IF(SUM(Table2[[#This Row],[Taxes]:[Infrastructure Improvement Payments]])=0,\"\",SUM(Table2[[#This Row],[Taxes]:[Infrastructure Improvement Payments]]))","v":{"v":1500000,"d":"1,500,000"}}]
["Colombia","Government of Colombia","Dirección de Impuestos y Aduanas Nacionales (DIAN) (Colombian Tax and Customs Organization).",{"v":5140000,"d":"5,140,000"},0,0,0,0,0,0,{"$f":"IF(SUM(Table2[[#This Row],[Taxes]:[Infrastructure Improvement Payments]])=0,\"\",SUM(Table2[[#This Row],[Taxes]:[Infrastructure Improvement Payments]]))","v":{"v":5140000,"d":"5,140,000"}}]
["Colombia","Government of Colombia","Ecopetrol",0,0,0,{"v":7660000,"d":"7,660,000"},0,0,0,{"$f":"IF(SUM(Table2[[#This Row],[Taxes]:[Infrastructure Improvement Payments]])=0,\"\",SUM(Table2[[#This Row],[Taxes]:[Infrastructure Improvement Payments]]))","v":{"v":7660000,"d":"7,660,000"}}]
["Guyana","Government of Guyana",null,0,0,{"v":2150000,"d":"2,150,000"},0,0,0,0,{"$f":"IF(SUM(Table2[[#This Row],[Taxes]:[Infrastructure Improvement Payments]])=0,\"\",SUM(Table2[[#This Row],[Taxes]:[Infrastructure Improvement Payments]]))","v":{"v":2150000,"d":"2,150,000"}}]
["Nigeria","Government of Nigeria","Federal Inland Revenue Services (FIRS)",{"v":116890000,"d":"116,890,000"},0,0,0,0,0,0,{"$f":"IF(SUM(Table2[[#This Row],[Taxes]:[Infrastructure Improvement Payments]])=0,\"\",SUM(Table2[[#This Row],[Taxes]:[Infrastructure Improvement Payments]]))","v":{"v":116890000,"d":"116,890,000"}}]
["Nigeria","Government of Nigeria","Nigeria Delta Development Commission (NDDC)",0,0,{"v":206470000,"d":"206,470,000"},0,0,0,0,{"$f":"IF(SUM(Table2[[#This Row],[Taxes]:[Infrastructure Improvement Payments]])=0,\"\",SUM(Table2[[#This Row],[Taxes]:[Infrastructure Improvement Payments]]))","v":{"v":206470000,"d":"206,470,000"}}]
["Nigeria","Government of Nigeria","Nigeria Export Supervision Scheme (NESS)",0,0,{"v":1970000,"d":"1,970,000"},0,0,0,0,{"$f":"IF(SUM(Table2[[#This Row],[Taxes]:[Infrastructure Improvement Payments]])=0,\"\",SUM(Table2[[#This Row],[Taxes]:[Infrastructure Improvement Payments]]))","v":{"v":1970000,"d":"1,970,000"}}]
["Nigeria","Government of Nigeria","Nigeria Petroleum Exchange (NIPEX)",0,0,{"v":220000,"d":"220,000"},0,0,0,0,{"$f":"IF(SUM(Table2[[#This Row],[Taxes]:[Infrastructure Improvement Payments]])=0,\"\",SUM(Table2[[#This Row],[Taxes]:[Infrastructure Improvement Payments]]))","v":{"v":220000,"d":"220,000"}}]
["Nigeria","Government of Nigeria","Nigerian National Petroleum Corporation (NNPC)",0,{"v":353700000,"d":"353,700,000"},{"v":20000,"d":"20,000"},0,0,0,0,{"$f":"IF(SUM(Table2[[#This Row],[Taxes]:[Infrastructure Improvement Payments]])=0,\"\",SUM(Table2[[#This Row],[Taxes]:[Infrastructure Improvement Payments]]))","v":{"v":353720000,"d":"353,720,000"}}]
["Nigeria","Government of Nigeria","Deep Offshore Community Affairs Group (DOCAG) Projects ",0,0,0,0,0,0,{"v":60000,"d":"60,000"},{"$f":"IF(SUM(Table2[[#This Row],[Taxes]:[Infrastructure Improvement Payments]])=0,\"\",SUM(Table2[[#This Row],[Taxes]:[Infrastructure Improvement Payments]]))","v":{"v":60000,"d":"60,000"}},{"$nulls":17},"Angola",{"$nulls":71},"DKK"]
["Nigeria","Government of Nigeria","Kaduna State government",0,0,0,0,0,0,{"v":630000,"d":"630,000"},{"$f":"IF(SUM(Table2[[#This Row],[Taxes]:[Infrastructure Improvement Payments]])=0,\"\",SUM(Table2[[#This Row],[Taxes]:[Infrastructure Improvement Payments]]))","v":{"v":630000,"d":"630,000"}},{"$nulls":17},"Anguilla",{"$nulls":71},"DOP"]
["United Kingdom of Great Britain and Northern Ireland","UK Government","Department of  Business Energy & Industrial Strategy",0,0,{"v":3550000,"d":"3,550,000"},0,0,0,0,{"$f":"IF(SUM(Table2[[#This Row],[Taxes]:[Infrastructure Improvement Payments]])=0,\"\",SUM(Table2[[#This Row],[Taxes]:[Infrastructure Improvement Payments]]))","v":{"v":3550000,"d":"3,550,000"}}]
["United Kingdom of Great Britain and Northern Ireland","UK Government","Health and Safety Executive",0,0,{"v":4190000,"d":"4,190,000"},0,0,0,0,{"$f":"IF(SUM(Table2[[#This Row],[Taxes]:[Infrastructure Improvement Payments]])=0,\"\",SUM(Table2[[#This Row],[Taxes]:[Infrastructure Improvement Payments]]))","v":{"v":4190000,"d":"4,190,000"}}]
["United Kingdom of Great Britain and Northern Ireland","UK Government","Her Majesty's Revenue and Customs (HMRC)",{"v":4065820000,"d":"4,065,820,000"},0,0,0,0,0,0,{"$f":"IF(SUM(Table2[[#This Row],[Taxes]:[Infrastructure Improvement Payments]])=0,\"\",SUM(Table2[[#This Row],[Taxes]:[Infrastructure Improvement Payments]]))","v":{"v":4065820000,"d":"4,065,820,000"}}]
["United Kingdom of Great Britain and Northern Ireland","UK Government","Oil & Gas Authority",0,0,{"v":58950000,"d":"58,950,000"},0,0,0,0,{"$f":"IF(SUM(Table2[[#This Row],[Taxes]:[Infrastructure Improvement Payments]])=0,\"\",SUM(Table2[[#This Row],[Taxes]:[Infrastructure Improvement Payments]]))","v":{"v":58950000,"d":"58,950,000"}}]
["United Kingdom of Great Britain and Northern Ireland","UK Government","The Met Office (UK National Weather Serivce)",0,0,{"v":230000,"d":"230,000"},0,0,0,0,{"$f":"IF(SUM(Table2[[#This Row],[Taxes]:[Infrastructure Improvement Payments]])=0,\"\",SUM(Table2[[#This Row],[Taxes]:[Infrastructure Improvement Payments]]))","v":{"v":230000,"d":"230,000"}}]
["United Kingdom of Great Britain and Northern Ireland","UK Government","The Oil and Gas Technology Centre",0,0,{"v":1830000,"d":"1,830,000"},0,0,0,0,{"$f":"IF(SUM(Table2[[#This Row],[Taxes]:[Infrastructure Improvement Payments]])=0,\"\",SUM(Table2[[#This Row],[Taxes]:[Infrastructure Improvement Payments]]))","v":{"v":1830000,"d":"1,830,000"}}]
["Ireland","Government of Ireland","Department of Communications, Climate change and Energy",0,0,{"v":1460000,"d":"1,460,000"},0,0,0,0,{"$f":"IF(SUM(Table2[[#This Row],[Taxes]:[Infrastructure Improvement Payments]])=0,\"\",SUM(Table2[[#This Row],[Taxes]:[Infrastructure Improvement Payments]]))","v":{"v":1460000,"d":"1,460,000"}}]
["Ireland","Government of Ireland","Commission for Regulation of Utilities",0,0,{"v":460000,"d":"460,000"},0,0,0,0,{"$f":"IF(SUM(Table2[[#This Row],[Taxes]:[Infrastructure Improvement Payments]])=0,\"\",SUM(Table2[[#This Row],[Taxes]:[Infrastructure Improvement Payments]]))","v":{"v":460000,"d":"460,000"}}]
["Senegal","Government of Senegal","Chef du Division du Recouvrement Senegal",0,0,{"v":4420000,"d":"4,420,000"},0,0,0,0,{"$f":"IF(SUM(Table2[[#This Row],[Taxes]:[Infrastructure Improvement Payments]])=0,\"\",SUM(Table2[[#This Row],[Taxes]:[Infrastructure Improvement Payments]]))","v":{"v":4420000,"d":"4,420,000"}}]
["Senegal","Government of Senegal","Agence de Gestion et de Cooperation",0,0,{"v":830000,"d":"830,000"},0,0,0,0,{"$f":"IF(SUM(Table2[[#This Row],[Taxes]:[Infrastructure Improvement Payments]])=0,\"\",SUM(Table2[[#This Row],[Taxes]:[Infrastructure Improvement Payments]]))","v":{"v":830000,"d":"830,000"}}]
["Canada","Provincial Government of Alberta","Alberta Energy Regulator",0,0,{"v":8440000,"d":"8,440,000"},0,0,0,0,{"$f":"IF(SUM(Table2[[#This Row],[Taxes]:[Infrastructure Improvement Payments]])=0,\"\",SUM(Table2[[#This Row],[Taxes]:[Infrastructure Improvement Payments]]))","v":{"v":8440000,"d":"8,440,000"}}]
["Canada","Provincial Government of Alberta","Alberta Infrastructure",0,0,{"v":70000,"d":"70,000"},0,0,0,0,{"$f":"IF(SUM(Table2[[#This Row],[Taxes]:[Infrastructure Improvement Payments]])=0,\"\",SUM(Table2[[#This Row],[Taxes]:[Infrastructure Improvement Payments]]))","v":{"v":70000,"d":"70,000"}}]
["Canada","Anzac Volunteer Fire Department","Anzac Volunteer Fire Department",0,0,{"v":210000,"d":"210,000"},0,0,0,0,{"$f":"IF(SUM(Table2[[#This Row],[Taxes]:[Infrastructure Improvement Payments]])=0,\"\",SUM(Table2[[#This Row],[Taxes]:[Infrastructure Improvement Payments]]))","v":{"v":210000,"d":"210,000"}}]
["Canada","Provincial Government of Alberta","Provincial Government of Alberta",{"v":60000,"d":"60,000"},0,{"v":9350000,"d":"9,350,000"},0,0,0,0,{"$f":"IF(SUM(Table2[[#This Row],[Taxes]:[Infrastructure Improvement Payments]])=0,\"\",SUM(Table2[[#This Row],[Taxes]:[Infrastructure Improvement Payments]]))","v":{"v":9410000,"d":"9,410,000"}}]
["Canada","Provincial Government of Alberta","Minister of Finance Province of Alberta Energy",0,0,{"v":4800000,"d":"4,800,000"},0,0,0,0,{"$f":"IF(SUM(Table2[[#This Row],[Taxes]:[Infrastructure Improvement Payments]])=0,\"\",SUM(Table2[[#This Row],[Taxes]:[Infrastructure Improvement Payments]]))","v":{"v":4800000,"d":"4,800,000"}}]
["Canada","Provincial Government of British Columbia","BC Oil & Gas Commission",0,0,{"v":3940000,"d":"3,940,000"},0,0,0,0,{"$f":"IF(SUM(Table2[[#This Row],[Taxes]:[Infrastructure Improvement Payments]])=0,\"\",SUM(Table2[[#This Row],[Taxes]:[Infrastructure Improvement Payments]]))","v":{"v":3940000,"d":"3,940,000"}}]
["Canada","Northern Rockies Regional Municipality","Northern Rockies Regional Municipality",{"v":2730000,"d":"2,730,000"},0,0,0,0,0,0,{"$f":"IF(SUM(Table2[[#This Row],[Taxes]:[Infrastructure Improvement Payments]])=0,\"\",SUM(Table2[[#This Row],[Taxes]:[Infrastructure Improvement Payments]]))","v":{"v":2730000,"d":"2,730,000"}}]
["Canada","Provincial Government of British Columbia","Province of British Columbia, Ministry of Energy and Mines",0,0,{"v":4230000,"d":"4,230,000"},0,0,0,0,{"$f":"IF(SUM(Table2[[#This Row],[Taxes]:[Infrastructure Improvement Payments]])=0,\"\",SUM(Table2[[#This Row],[Taxes]:[Infrastructure Improvement Payments]]))","v":{"v":4230000,"d":"4,230,000"}}]
["Canada","Provincial Government of Alberta","Provincial Treasurer of Alberta - Alberta Energy",0,{"v":103460000,"d":"103,460,000"},0,0,0,0,0,{"$f":"IF(SUM(Table2[[#This Row],[Taxes]:[Infrastructure Improvement Payments]])=0,\"\",SUM(Table2[[#This Row],[Taxes]:[Infrastructure Improvement Payments]]))","v":{"v":103460000,"d":"103,460,000"}},{"$nulls":17},"Antarctica",{"$nulls":71},"EGP"]
["Canada","Federal Government of Canada","Receiver General for Canada - Natural Resources Canada - Accounts Receivable and Revenue Unit",0,0,{"v":3830000,"d":"3,830,000"},0,0,0,0,{"$f":"IF(SUM(Table2[[#This Row],[Taxes]:[Infrastructure Improvement Payments]])=0,\"\",SUM(Table2[[#This Row],[Taxes]:[Infrastructure Improvement Payments]]))","v":{"v":3830000,"d":"3,830,000"}},{"$nulls":17},"Antigua and Barbuda",{"$nulls":71},"ERN"]
["Canada","Regional Municipality of Wood Buffalo","Regional Municipality of Wood Buffalo",{"v":63260000,"d":"63,260,000"},0,0,0,0,0,0,{"$f":"IF(SUM(Table2[[#This Row],[Taxes]:[Infrastructure Improvement Payments]])=0,\"\",SUM(Table2[[#This Row],[Taxes]:[Infrastructure Improvement Payments]]))","v":{"v":63260000,"d":"63,260,000"}},{"$nulls":17},"Argentina",{"$nulls":71},"ETB"]
["Canada","Municipality of Wood Buffalo","Regional Recreation Centre of Wood Buffalo",0,0,{"v":1000000,"d":"1,000,000"},0,0,0,0,{"$f":"IF(SUM(Table2[[#This Row],[Taxes]:[Infrastructure Improvement Payments]])=0,\"\",SUM(Table2[[#This Row],[Taxes]:[Infrastructure Improvement Payments]]))","v":{"v":1000000,"d":"1,000,000"}},{"$nulls":17},"Armenia",{"$nulls":71},"EUR"]
["Canada","Provincial Government of Saskatchewan","Saskatchewan Research Council",0,0,{"v":3970000,"d":"3,970,000"},0,0,0,0,{"$f":"IF(SUM(Table2[[#This Row],[Taxes]:[Infrastructure Improvement Payments]])=0,\"\",SUM(Table2[[#This Row],[Taxes]:[Infrastructure Improvement Payments]]))","v":{"v":3970000,"d":"3,970,000"}},{"$nulls":17},"Aruba",{"$nulls":71},"FJD"]
["Canada","The City of Calgary","The City of Calgary",{"v":60000,"d":"60,000"},0,0,0,0,0,0,{"$f":"IF(SUM(Table2[[#This Row],[Taxes]:[Infrastructure Improvement Payments]])=0,\"\",SUM(Table2[[#This Row],[Taxes]:[Infrastructure Improvement Payments]]))","v":{"v":60000,"d":"60,000"}},{"$nulls":17},"Australia",{"$nulls":71},"FKP"]
["Canada","Federal Government of Canada","Natural Resources Canada",0,0,{"v":450000,"d":"450,000"},0,0,0,0,{"$f":"IF(SUM(Table2[[#This Row],[Taxes]:[Infrastructure Improvement Payments]])=0,\"\",SUM(Table2[[#This Row],[Taxes]:[Infrastructure Improvement Payments]]))","v":{"v":450000,"d":"450,000"}}]
["Canada","Municipality of Lake Athabasca","Lake Athabasca Youth Council and Janvier Sekweha Youth Centre",0,0,{"v":420000,"d":"420,000"},0,0,0,0,{"$f":"IF(SUM(Table2[[#This Row],[Taxes]:[Infrastructure Improvement Payments]])=0,\"\",SUM(Table2[[#This Row],[Taxes]:[Infrastructure Improvement Payments]]))","v":{"v":420000,"d":"420,000"}}]
["Canada","Provincial Government of Newfoundland and Labrador","Canada Newfoundland and Labrador Offshore Petroleum Board",0,0,{"v":620000,"d":"620,000"},0,0,0,0,{"$f":"IF(SUM(Table2[[#This Row],[Taxes]:[Infrastructure Improvement Payments]])=0,\"\",SUM(Table2[[#This Row],[Taxes]:[Infrastructure Improvement Payments]]))","v":{"v":620000,"d":"620,000"}}]
["Canada","Rocky View County","Rocky View County",{"v":330000,"d":"330,000"},0,0,0,0,0,0,{"$f":"IF(SUM(Table2[[#This Row],[Taxes]:[Infrastructure Improvement Payments]])=0,\"\",SUM(Table2[[#This Row],[Taxes]:[Infrastructure Improvement Payments]]))","v":{"v":330000,"d":"330,000"}}]
["Canada","F&G CONTROLS INC.","F&G CONTROLS INC.",0,0,{"v":210000,"d":"210,000"},0,0,0,0,{"$f":"IF(SUM(Table2[[#This Row],[Taxes]:[Infrastructure Improvement Payments]])=0,\"\",SUM(Table2[[#This Row],[Taxes]:[Infrastructure Improvement Payments]]))","v":{"v":210000,"d":"210,000"}}]
["Canada","Federal Government of Canada","THE CONFERENCE BOARD OF CANADA",0,0,{"v":190000,"d":"190,000"},0,0,0,0,{"$f":"IF(SUM(Table2[[#This Row],[Taxes]:[Infrastructure Improvement Payments]])=0,\"\",SUM(Table2[[#This Row],[Taxes]:[Infrastructure Improvement Payments]]))","v":{"v":190000,"d":"190,000"}}]
["Canada","FORT MCMURRAY FIRST NATION",null,0,0,{"v":520000,"d":"520,000"},0,0,0,0,{"$f":"IF(SUM(Table2[[#This Row],[Taxes]:[Infrastructure Improvement Payments]])=0,\"\",SUM(Table2[[#This Row],[Taxes]:[Infrastructure Improvement Payments]]))","v":{"v":520000,"d":"520,000"}}]
["Canada","Provincial Government of Alberta","ALBERTA CHAMBER OF RESOURCES",0,0,{"v":90000,"d":"90,000"},0,0,0,0,{"$f":"IF(SUM(Table2[[#This Row],[Taxes]:[Infrastructure Improvement Payments]])=0,\"\",SUM(Table2[[#This Row],[Taxes]:[Infrastructure Improvement Payments]]))","v":{"v":90000,"d":"90,000"}}]
["Canada","TOWN OF FORT ERIE","TOWN OF FORT ERIE",{"v":30000,"d":"30,000"},0,0,0,0,0,0,{"$f":"IF(SUM(Table2[[#This Row],[Taxes]:[Infrastructure Improvement Payments]])=0,\"\",SUM(Table2[[#This Row],[Taxes]:[Infrastructure Improvement Payments]]))","v":{"v":30000,"d":"30,000"}}]
["Ghana","Government of Ghana","MINISTRY OF ENERGY",0,0,{"v":70000,"d":"70,000"},0,0,0,0,{"$f":"IF(SUM(Table2[[#This Row],[Taxes]:[Infrastructure Improvement Payments]])=0,\"\",SUM(Table2[[#This Row],[Taxes]:[Infrastructure Improvement Payments]]))","v":{"v":70000,"d":"70,000"}}]
[{"$nulls":10},{"$f":"IF(SUM(Table2[[#This Row],[Taxes]:[Infrastructure Improvement Payments]])=0,\"\",SUM(Table2[[#This Row],[Taxes]:[Infrastructure Improvement Payments]]))","v":""}]
[null,"Total",null,{"$f":"SUBTOTAL(109,D10:D83)","v":{"v":25447340000,"d":"25,447,340,000"}},{"v":1443610000,"d":"1,443,610,000"},{"v":434560000,"d":"434,560,000"},{"v":1209690000,"d":"1,209,690,000"},{"v":264290000,"d":"264,290,000"},0,{"v":690000,"d":"690,000"},{"$f":"IF(SUM(Table2[[#This Row],[Taxes]:[Infrastructure Improvement Payments]])=0,\"\",SUM(Table2[[#This Row],[Taxes]:[Infrastructure Improvement Payments]]))","v":{"v":28800180000,"d":"28,800,180,000"}}]
[{"$nulls":10},{"$f":"IF(SUM(Table2[[#This Row],[Taxes]:[Infrastructure Improvement Payments]])=0,\"\",SUM(Table2[[#This Row],[Taxes]:[Infrastructure Improvement Payments]]))","v":""}]
["Additional Notes:","All payments are reported in CNY and have been rounded to the nearest CNY10,000. Where payments were made in currencies other than CNY, the payments were converted into CNY using a weighted average of the exchange rates during the period. The weighted average exchange rate used was CNY 6.6201 to USD 1.00.",{"$nulls":26},"Benin",{"$nulls":71},"HNL"]
["1 Enter the proper name of the Payee receiving the money (i.e. the municipality of x, the province of y, national government of z). ",{"$nulls":27},"Bermuda",{"$nulls":71},"HRK"]
["2 Optional field.",{"$nulls":27},"Bhutan",{"$nulls":71},"HTG"]
["3 When payments are made in-kind, the notes field must highlight which payment includes in-kind contributions and the method for calculating the value of the payment.",{"$nulls":27},"Bolivia, Plurinational State of",{"$nulls":71},"HUF"]
["4 Any payments made in currencies other than the report currency must be identified. The Reporting Entity may use the Additional notes row or the Notes column to identify any payments that are converted, along with the exchange rate and primary method used for currency conversions.",{"$nulls":27},"Bonaire, Sint Eustatius and Saba",{"$nulls":71},"IDR"]
[{"$nulls":28},"Bosnia and Herzegovina",{"$nulls":71},"ILS"]
[{"$nulls":28},"Botswana",{"$nulls":71},"INR"]
[{"$nulls":28},"Bouvet Island",{"$nulls":71},"IQD"]
[]
[{"$nulls":28},"British Indian Ocean Territory",{"$nulls":71},"ISK"]
[{"$nulls":28},"Brunei Darussalam",{"$nulls":71},"JMD"]
[{"$nulls":28},"Bulgaria",{"$nulls":71},"JOD"]
[{"$nulls":28},"Burkina Faso",{"$nulls":71},"JPY"]
[{"$nulls":28},"Burundi",{"$nulls":71},"KES"]
[{"$nulls":28},"Cabo Verde",{"$nulls":71},"KGS"]
[{"$nulls":28},"Cambodia",{"$nulls":71},"KHR"]
[{"$nulls":28},"Cameroon",{"$nulls":71},"KMF"]
[{"$nulls":28},"Cayman Islands",{"$nulls":71},"KPW"]
[{"$nulls":28},"Central African Republic",{"$nulls":71},"KRW"]
[{"$nulls":28},"Chad",{"$nulls":71},"KWD"]
[{"$nulls":28},"Chile",{"$nulls":71},"KYD"]
[{"$nulls":28},"China",{"$nulls":71},"KZT"]
[{"$nulls":28},"Christmas Island",{"$nulls":71},"LAK"]
[{"$nulls":28},"Cocos (Keeling) Islands",{"$nulls":71},"LBP"]
[{"$nulls":28},"Colombia",{"$nulls":71},"LKR"]
[{"$nulls":28},"Comoros",{"$nulls":71},"LRD"]
[{"$nulls":28},"Congo",{"$nulls":71},"LSL"]
[{"$nulls":28},"Congo, the Democratic Republic of the",{"$nulls":71},"LYD"]
[{"$nulls":28},"Cook Islands",{"$nulls":71},"MAD"]
[{"$nulls":28},"Costa Rica",{"$nulls":71},"MDL"]
[{"$nulls":28},"Côte d'Ivoire",{"$nulls":71},"MGA"]
[{"$nulls":28},"Croatia",{"$nulls":71},"MKD"]
[{"$nulls":28},"Cuba",{"$nulls":71},"MMK"]
[{"$nulls":28},"Curaçao",{"$nulls":71},"MNT"]
[{"$nulls":28},"Cyprus",{"$nulls":71},"MOP"]
[{"$nulls":28},"Czechia",{"$nulls":71},"MRO"]
[{"$nulls":28},"Denmark",{"$nulls":71},"MUR"]
[{"$nulls":28},"Djibouti",{"$nulls":71},"MVR"]
[{"$nulls":28},"Dominica",{"$nulls":71},"MWK"]
[{"$nulls":28},"Dominican Republic",{"$nulls":71},"MXN"]
[{"$nulls":28},"Ecuador",{"$nulls":71},"MXV"]
[{"$nulls":28},"Egypt",{"$nulls":71},"MYR"]
[{"$nulls":28},"El Salvador",{"$nulls":71},"MZN"]
[{"$nulls":28},"Equatorial Guinea",{"$nulls":71},"NAD"]
[{"$nulls":28},"Eritrea",{"$nulls":71},"NGN"]
[{"$nulls":28},"Estonia",{"$nulls":71},"NIO"]
[{"$nulls":28},"Ethiopia",{"$nulls":71},"NOK"]
[{"$nulls":28},"Falkland Islands (Malvinas)",{"$nulls":71},"NPR"]
[{"$nulls":28},"Faroe Islands",{"$nulls":71},"NZD"]
[{"$nulls":28},"Fiji",{"$nulls":71},"OMR"]
[{"$nulls":28},"Finland",{"$nulls":71},"PAB"]
[{"$nulls":28},"France",{"$nulls":71},"PEN"]
[{"$nulls":28},"French Guiana",{"$nulls":71},"PGK"]
[{"$nulls":28},"French Polynesia",{"$nulls":71},"PHP"]
[{"$nulls":28},"French Southern Territories",{"$nulls":71},"PKR"]
[{"$nulls":28},"Gabon",{"$nulls":71},"PLN"]
[{"$nulls":28},"Gambia",{"$nulls":71},"PYG"]
[{"$nulls":28},"Georgia",{"$nulls":71},"QAR"]
[{"$nulls":28},"Germany",{"$nulls":71},"RON"]
[{"$nulls":28},"Ghana",{"$nulls":71},"RSD"]
[{"$nulls":28},"Gibraltar",{"$nulls":71},"RUB"]
[{"$nulls":28},"Greece",{"$nulls":71},"RWF"]
[{"$nulls":28},"Greenland",{"$nulls":71},"SAR"]
[{"$nulls":28},"Grenada",{"$nulls":71},"SBD"]
[{"$nulls":28},"Guadeloupe",{"$nulls":71},"SCR"]
[{"$nulls":28},"Guam",{"$nulls":71},"SDG"]
[{"$nulls":28},"Guatemala",{"$nulls":71},"SEK"]
[{"$nulls":28},"Guernsey",{"$nulls":71},"SGD"]
[{"$nulls":28},"Guinea",{"$nulls":71},"SHP"]
[{"$nulls":28},"Guinea-Bissau",{"$nulls":71},"SLL"]
[{"$nulls":28},"Guyana",{"$nulls":71},"SOS"]
[{"$nulls":28},"Haiti",{"$nulls":71},"SRD"]
[{"$nulls":28},"Heard Island and McDonald Islands",{"$nulls":71},"SSP"]
[{"$nulls":28},"Holy See",{"$nulls":71},"STD"]
[{"$nulls":28},"Honduras",{"$nulls":71},"SVC"]
[{"$nulls":28},"Hong Kong",{"$nulls":71},"SYP"]
[{"$nulls":28},"Hungary",{"$nulls":71},"SZL"]
[{"$nulls":28},"Iceland",{"$nulls":71},"THB"]
[{"$nulls":28},"India",{"$nulls":71},"TJS"]
[{"$nulls":28},"Indonesia",{"$nulls":71},"TMT"]
[{"$nulls":28},"Iran, Islamic Republic of",{"$nulls":71},"TND"]
[{"$nulls":28},"Iraq",{"$nulls":71},"TOP"]
[{"$nulls":28},"Ireland",{"$nulls":71},"TRY"]
[{"$nulls":28},"Isle of Man",{"$nulls":71},"TTD"]
[{"$nulls":28},"Israel",{"$nulls":71},"TWD"]
[{"$nulls":28},"Italy",{"$nulls":71},"TZS"]
[{"$nulls":28},"Jamaica",{"$nulls":71},"UAH"]
[{"$nulls":28},"Japan",{"$nulls":71},"UGX"]
[{"$nulls":28},"Jersey",{"$nulls":71},"USN"]
[{"$nulls":28},"Jordan",{"$nulls":71},"UYI"]
[{"$nulls":28},"Kazakhstan",{"$nulls":71},"UYU"]
[{"$nulls":28},"Kenya",{"$nulls":71},"UZS"]
[{"$nulls":28},"Kiribati",{"$nulls":71},"VEF"]
[{"$nulls":28},"Korea, Democratic People's Republic of",{"$nulls":71},"VND"]
[{"$nulls":28},"Korea, Republic of",{"$nulls":71},"VUV"]
[{"$nulls":28},"Kuwait",{"$nulls":71},"WST"]
[{"$nulls":28},"Kyrgyzstan",{"$nulls":71},"XAF"]
[{"$nulls":28},"Lao People's Democratic Republic",{"$nulls":71},"XAG"]
[{"$nulls":28},"Latvia",{"$nulls":71},"XAU"]
[{"$nulls":28},"Lebanon",{"$nulls":71},"XBA"]
[{"$nulls":28},"Lesotho",{"$nulls":71},"XBB"]
[{"$nulls":28},"Liberia",{"$nulls":71},"XBC"]
[{"$nulls":28},"Libya",{"$nulls":71},"XBD"]
[{"$nulls":28},"Liechtenstein",{"$nulls":71},"XCD"]
[{"$nulls":28},"Lithuania",{"$nulls":71},"XDR"]
[{"$nulls":28},"Luxembourg",{"$nulls":71},"XOF"]
[{"$nulls":28},"Macao",{"$nulls":71},"XPD"]
[{"$nulls":28},"Macedonia, the former Yugoslav Republic of",{"$nulls":71},"XPF"]
[{"$nulls":28},"Madagascar",{"$nulls":71},"XPT"]
[{"$nulls":28},"Malawi",{"$nulls":71},"XSU"]
[{"$nulls":28},"Malaysia",{"$nulls":71},"XTS"]
[{"$nulls":28},"Maldives",{"$nulls":71},"XUA"]
[{"$nulls":28},"Mali",{"$nulls":71},"XXX"]
[{"$nulls":28},"Malta",{"$nulls":71},"YER"]
[{"$nulls":28},"Marshall Islands",{"$nulls":71},"ZAR"]
[{"$nulls":28},"Martinique",{"$nulls":71},"ZMW"]
[{"$nulls":28},"Mauritania",{"$nulls":71},"ZWL"]
[{"$nulls":28},"Mauritius"]
[{"$nulls":28},"Mayotte"]
[{"$nulls":28},"Mexico"]
[{"$nulls":28},"Micronesia, Federated States of"]
[{"$nulls":28},"Moldova, Republic of"]
[{"$nulls":28},"Monaco"]
[{"$nulls":28},"Mongolia"]
[{"$nulls":28},"Montenegro"]
[{"$nulls":28},"Montserrat"]
[{"$nulls":28},"Morocco"]
[{"$nulls":28},"Mozambique"]
[{"$nulls":28},"Myanmar"]
[{"$nulls":28},"Namibia"]
[{"$nulls":28},"Nauru"]
[{"$nulls":28},"Nepal"]
[{"$nulls":28},"Netherlands"]
[{"$nulls":28},"New Caledonia"]
[{"$nulls":28},"New Zealand"]
[{"$nulls":28},"Nicaragua"]
[{"$nulls":28},"Niger"]
[{"$nulls":28},"Nigeria"]
[{"$nulls":28},"Niue"]
[{"$nulls":28},"Norfolk Island"]
[{"$nulls":28},"Northern Mariana Islands"]
[{"$nulls":28},"Norway"]
[{"$nulls":28},"Oman"]
[{"$nulls":28},"Pakistan"]
[{"$nulls":28},"Palau"]
[{"$nulls":28},"Palestine, State of"]
[{"$nulls":28},"Panama"]
[{"$nulls":28},"Papua New Guinea"]
[{"$nulls":28},"Paraguay"]
[{"$nulls":28},"Peru"]
[{"$nulls":28},"Philippines"]
[{"$nulls":28},"Pitcairn"]
[{"$nulls":28},"Poland"]
[{"$nulls":28},"Portugal"]
[{"$nulls":28},"Puerto Rico"]
[{"$nulls":28},"Qatar"]
[{"$nulls":28},"Réunion"]
[{"$nulls":28},"Romania"]
[{"$nulls":28},"Russian Federation"]
[{"$nulls":28},"Rwanda"]
[{"$nulls":28},"Saint Barthélemy"]
[{"$nulls":28},"Saint Helena, Ascension and Tristan da Cunha"]
[{"$nulls":28},"Saint Kitts and Nevis"]
[{"$nulls":28},"Saint Lucia"]
[{"$nulls":28},"Saint Martin (French part)"]
[{"$nulls":28},"Saint Pierre and Miquelon"]
[{"$nulls":28},"Saint Vincent and the Grenadines"]
[{"$nulls":28},"Samoa"]
[{"$nulls":28},"San Marino"]
[{"$nulls":28},"Sao Tome and Principe"]
[{"$nulls":28},"Saudi Arabia"]
[{"$nulls":28},"Senegal"]
[{"$nulls":28},"Serbia"]
[{"$nulls":28},"Seychelles"]
[{"$nulls":28},"Sierra Leone"]
[{"$nulls":28},"Singapore"]
[{"$nulls":28},"Sint Maarten (Dutch part)"]
[{"$nulls":28},"Slovakia"]
[{"$nulls":28},"Slovenia"]
[{"$nulls":28},"Solomon Islands"]
[{"$nulls":28},"Somalia"]
[{"$nulls":28},"South Africa"]
[{"$nulls":28},"South Georgia and the South Sandwich Islands"]
[{"$nulls":28},"South Sudan"]
[{"$nulls":28},"Spain"]
[{"$nulls":28},"Sri Lanka"]
[{"$nulls":28},"Sudan"]
[{"$nulls":28},"Suriname"]
[{"$nulls":28},"Svalbard and Jan Mayen"]
[{"$nulls":28},"Swaziland"]
[{"$nulls":28},"Sweden"]
[{"$nulls":28},"Switzerland"]
[{"$nulls":28},"Syrian Arab Republic"]
[{"$nulls":28},"Taiwan, Province of China"]
[{"$nulls":28},"Tajikistan"]
[{"$nulls":28},"Tanzania, United Republic of"]
[{"$nulls":28},"Thailand"]
[{"$nulls":28},"Timor-Leste"]
[{"$nulls":28},"Togo"]
[{"$nulls":28},"Tokelau"]
[{"$nulls":28},"Tonga"]
[{"$nulls":28},"Trinidad and Tobago"]
[{"$nulls":28},"Tunisia"]
[{"$nulls":28},"Turkey"]
[{"$nulls":28},"Turkmenistan"]
[{"$nulls":28},"Turks and Caicos Islands"]
[{"$nulls":28},"Tuvalu"]
[{"$nulls":28},"Uganda"]
[{"$nulls":28},"Ukraine"]
[{"$nulls":28},"United Arab Emirates"]
[{"$nulls":28},"United Kingdom of Great Britain and Northern Ireland"]
[{"$nulls":28},"United States Minor Outlying Islands"]
[{"$nulls":28},"United States of America"]
[{"$nulls":28},"Uruguay"]
[{"$nulls":28},"Uzbekistan"]
[{"$nulls":28},"Vanuatu"]
[{"$nulls":28},"Venezuela, Bolivarian Republic of"]
[{"$nulls":28},"Viet Nam"]
[{"$nulls":28},"Virgin Islands, British"]
[{"$nulls":28},"Virgin Islands, U.S."]
[{"$nulls":28},"Wallis and Futuna"]
[{"$nulls":28},"Western Sahara"]
[{"$nulls":28},"Yemen"]
[{"$nulls":28},"Zambia"]
[{"$nulls":28},"Zimbabwe"]

{"sheet":"Payments by Project","index":3,"n_rows":304,"n_cols":28,"rows_kept":304,"merged":[[0,0,2,10],[4,1,4,5],[4,7,4,8],[5,1,5,5],[5,7,5,8],[6,1,6,5],[6,7,6,8],[7,0,7,10],[80,1,80,10],[81,0,81,10],[82,0,82,10],[83,0,83,10]]}
["Extractive Sector Transparency Measures Act - Annual Report",{"$nulls":26},"Canada"]
[{"$nulls":27},"Canada -Alberta"]
[{"$nulls":27},"Canada -British Columbia"]
["Reporting Year","From:",{"$f":"'Cover Page - do not edit'!C3","v":"2018-01-01"},"To: ",{"$f":"'Cover Page - do not edit'!E3","v":"2018-12-31"},{"$nulls":22},"Canada -Manitoba"]
["Reporting Entity Name",{"$f":"'Cover Page - do not edit'!B2:G2","v":"CNOOC Limited"},{"$nulls":4},"Currency of the Report",{"$f":"IF('Data Entry'!C21=\"\",\"\",'Data Entry'!C21)","v":"CNY"},{"$nulls":19},"Canada -New Brunswick"]
["Reporting Entity ESTMA Identification Number",{"$f":"'Cover Page - do not edit'!B4","v":"E645951"},{"$nulls":25},"Canada -Newfoundland and Labrador"]
["Subsidiary Reporting Entities (if necessary)",{"$f":"'Cover Page - do not edit'!B8:G8","v":"CNOOC Petroleum North America ULC E900333, CNOOC Canada Energy Ltd. E231597"},{"$nulls":25},"Canada -Northwest Territories"]
["Payments by Project",{"$nulls":26},"Canada -Nova Scotia"]
["Country","Project Name1","Taxes","Royalties","Fees","Production Entitlements","Bonuses","Dividends","Infrastructure Improvement Payments","Total Amount paid by Project","Notes23",{"$nulls":16},"Canada -Nunavut"]
["China","Bohai",{"v":4212050000,"d":"4,212,050,000"},{"v":641650000,"d":"641,650,000"},{"v":67170000,"d":"67,170,000"},{"v":987840000,"d":"987,840,000"},0,0,0,{"$f":"IF(SUM(Table25[[#This Row],[Taxes]:[Infrastructure Improvement Payments]])=0,\"\",SUM(Table25[[#This Row],[Taxes]:[Infrastructure Improvement Payments]]))","v":{"v":5908710000,"d":"5,908,710,000"}},{"$nulls":17},"Canada -Ontario"]
["China","Western South China Sea",{"v":1401730000,"d":"1,401,730,000"},0,{"v":3310000,"d":"3,310,000"},{"v":35950000,"d":"35,950,000"},0,0,0,{"$f":"IF(SUM(Table25[[#This Row],[Taxes]:[Infrastructure Improvement Payments]])=0,\"\",SUM(Table25[[#This Row],[Taxes]:[Infrastructure Improvement Payments]]))","v":{"v":1440990000,"d":"1,440,990,000"}},{"$nulls":17},"Canada -Prince Edward Island"]
["China","Eastern South China Sea",{"v":2172100000,"d":"2,172,100,000"},{"v":46470000,"d":"46,470,000"},{"v":2340000,"d":"2,340,000"},{"v":178240000,"d":"178,240,000"},0,0,0,{"$f":"IF(SUM(Table25[[#This Row],[Taxes]:[Infrastructure Improvement Payments]])=0,\"\",SUM(Table25[[#This Row],[Taxes]:[Infrastructure Improvement Payments]]))","v":{"v":2399150000,"d":"2,399,150,000"}},{"$nulls":17},"Canada -Quebec"]
["China","East China Sea",{"v":167430000,"d":"167,430,000"},0,{"v":900000,"d":"900,000"},0,0,0,0,{"$f":"IF(SUM(Table25[[#This Row],[Taxes]:[Infrastructure Improvement Payments]])=0,\"\",SUM(Table25[[#This Row],[Taxes]:[Infrastructure Improvement Payments]]))","v":{"v":168330000,"d":"168,330,000"}},{"$nulls":17},"Canada -Saskatchewan"]
["China","Entity level payment",{"v":11773780000,"d":"11,773,780,000"},0,0,0,0,0,0,{"$f":"IF(SUM(Table25[[#This Row],[Taxes]:[Infrastructure Improvement Payments]])=0,\"\",SUM(Table25[[#This Row],[Taxes]:[Infrastructure Improvement Payments]]))","v":{"v":11773780000,"d":"11,773,780,000"}},{"$nulls":17},"Afghanistan"]
["Australia","North West Shelf",{"v":209480000,"d":"209,480,000"},{"v":107220000,"d":"107,220,000"},0,0,0,0,0,{"$f":"IF(SUM(Table25[[#This Row],[Taxes]:[Infrastructure Improvement Payments]])=0,\"\",SUM(Table25[[#This Row],[Taxes]:[Infrastructure Improvement Payments]]))","v":{"v":316700000,"d":"316,700,000"}},{"$nulls":17},"Åland Islands"]
["Congo","Haute Mer A",{"v":240000,"d":"240,000"},{"v":10000,"d":"10,000"},{"v":2050000,"d":"2,050,000"},0,0,0,0,{"$f":"IF(SUM(Table25[[#This Row],[Taxes]:[Infrastructure Improvement Payments]])=0,\"\",SUM(Table25[[#This Row],[Taxes]:[Infrastructure Improvement Payments]]))","v":{"v":2300000,"d":"2,300,000"}},{"$nulls":17},"Albania"]
["Indonesia","SES",{"v":125260000,"d":"125,260,000"},0,0,0,0,0,0,{"$f":"IF(SUM(Table25[[#This Row],[Taxes]:[Infrastructure Improvement Payments]])=0,\"\",SUM(Table25[[#This Row],[Taxes]:[Infrastructure Improvement Payments]]))","v":{"v":125260000,"d":"125,260,000"}},{"$nulls":17},"Algeria"]
["Indonesia","Tangguh",{"v":743920000,"d":"743,920,000"},0,0,0,0,0,0,{"$f":"IF(SUM(Table25[[#This Row],[Taxes]:[Infrastructure Improvement Payments]])=0,\"\",SUM(Table25[[#This Row],[Taxes]:[Infrastructure Improvement Payments]]))","v":{"v":743920000,"d":"743,920,000"}},{"$nulls":17},"American Samoa"]
["Uganda","EA1,EA2,EA3A",0,0,{"v":2140000,"d":"2,140,000"},0,0,0,0,{"$f":"IF(SUM(Table25[[#This Row],[Taxes]:[Infrastructure Improvement Payments]])=0,\"\",SUM(Table25[[#This Row],[Taxes]:[Infrastructure Improvement Payments]]))","v":{"v":2140000,"d":"2,140,000"}},{"$nulls":17},"Andorra"]
["Trinidad and Tobago","2C,3A",0,0,{"v":2640000,"d":"2,640,000"},0,0,0,0,{"$f":"IF(SUM(Table25[[#This Row],[Taxes]:[Infrastructure Improvement Payments]])=0,\"\",SUM(Table25[[#This Row],[Taxes]:[Infrastructure Improvement Payments]]))","v":{"v":2640000,"d":"2,640,000"}},{"$nulls":17},"Angola"]
["Equatorial Guinea","Block3",0,0,{"v":1940000,"d":"1,940,000"},0,0,0,0,{"$f":"IF(SUM(Table25[[#This Row],[Taxes]:[Infrastructure Improvement Payments]])=0,\"\",SUM(Table25[[#This Row],[Taxes]:[Infrastructure Improvement Payments]]))","v":{"v":1940000,"d":"1,940,000"}},{"$nulls":17},"Anguilla"]
["Brazil","592、ACFO、Pau、libra",{"v":2070000,"d":"2,070,000"},{"v":66450000,"d":"66,450,000"},0,0,{"v":264290000,"d":"264,290,000"},0,0,{"$f":"IF(SUM(Table25[[#This Row],[Taxes]:[Infrastructure Improvement Payments]])=0,\"\",SUM(Table25[[#This Row],[Taxes]:[Infrastructure Improvement Payments]]))","v":{"v":332810000,"d":"332,810,000"}},{"$nulls":17},"Antarctica"]
["Mexico","E&P Mexico Block 1&4",{"v":25050000,"d":"25,050,000"},0,{"v":18980000,"d":"18,980,000"},0,0,0,0,{"$f":"IF(SUM(Table25[[#This Row],[Taxes]:[Infrastructure Improvement Payments]])=0,\"\",SUM(Table25[[#This Row],[Taxes]:[Infrastructure Improvement Payments]]))","v":{"v":44030000,"d":"44,030,000"}},{"$nulls":17},"Antigua and Barbuda"]
["United States of America","Appomattox",0,0,{"v":370000,"d":"370,000"},0,0,0,0,{"$f":"IF(SUM(Table25[[#This Row],[Taxes]:[Infrastructure Improvement Payments]])=0,\"\",SUM(Table25[[#This Row],[Taxes]:[Infrastructure Improvement Payments]]))","v":{"v":370000,"d":"370,000"}},{"$nulls":17},"Argentina"]
["United States of America","Bull Run",0,0,{"v":150000,"d":"150,000"},0,0,0,0,{"$f":"IF(SUM(Table25[[#This Row],[Taxes]:[Infrastructure Improvement Payments]])=0,\"\",SUM(Table25[[#This Row],[Taxes]:[Infrastructure Improvement Payments]]))","v":{"v":150000,"d":"150,000"}},{"$nulls":17},"Armenia"]
["United States of America","Cumberland Church",0,0,{"v":150000,"d":"150,000"},0,0,0,0,{"$f":"IF(SUM(Table25[[#This Row],[Taxes]:[Infrastructure Improvement Payments]])=0,\"\",SUM(Table25[[#This Row],[Taxes]:[Infrastructure Improvement Payments]]))","v":{"v":150000,"d":"150,000"}},{"$nulls":17},"Aruba"]
["United States of America","Cut-N-Shoot II",0,0,{"v":310000,"d":"310,000"},0,0,0,0,{"$f":"IF(SUM(Table25[[#This Row],[Taxes]:[Infrastructure Improvement Payments]])=0,\"\",SUM(Table25[[#This Row],[Taxes]:[Infrastructure Improvement Payments]]))","v":{"v":310000,"d":"310,000"}},{"$nulls":17},"Australia"]
["United States of America","Deep Rydberg",0,0,{"v":150000,"d":"150,000"},0,0,0,0,{"$f":"IF(SUM(Table25[[#This Row],[Taxes]:[Infrastructure Improvement Payments]])=0,\"\",SUM(Table25[[#This Row],[Taxes]:[Infrastructure Improvement Payments]]))","v":{"v":150000,"d":"150,000"}},{"$nulls":17},"Austria"]
["United States of America","Dover",0,0,{"v":120000,"d":"120,000"},0,0,0,0,{"$f":"IF(SUM(Table25[[#This Row],[Taxes]:[Infrastructure Improvement Payments]])=0,\"\",SUM(Table25[[#This Row],[Taxes]:[Infrastructure Improvement Payments]]))","v":{"v":120000,"d":"120,000"}},{"$nulls":17},"Azerbaijan"]
["United States of America","Dover N (Castle Valley)",0,0,{"v":130000,"d":"130,000"},0,0,0,0,{"$f":"IF(SUM(Table25[[#This Row],[Taxes]:[Infrastructure Improvement Payments]])=0,\"\",SUM(Table25[[#This Row],[Taxes]:[Infrastructure Improvement Payments]]))","v":{"v":130000,"d":"130,000"}},{"$nulls":17},"Bahamas"]
["United States of America","Eagleford",{"v":292550000,"d":"292,550,000"},{"v":7720000,"d":"7,720,000"},0,0,0,0,0,{"$f":"IF(SUM(Table25[[#This Row],[Taxes]:[Infrastructure Improvement Payments]])=0,\"\",SUM(Table25[[#This Row],[Taxes]:[Infrastructure Improvement Payments]]))","v":{"v":300270000,"d":"300,270,000"}},{"$nulls":17},"Bahrain"]
["United States of America","Vicksburg (Gettysburg)",0,0,{"v":60000,"d":"60,000"},0,0,0,0,{"$f":"IF(SUM(Table25[[#This Row],[Taxes]:[Infrastructure Improvement Payments]])=0,\"\",SUM(Table25[[#This Row],[Taxes]:[Infrastructure Improvement Payments]]))","v":{"v":60000,"d":"60,000"}}]
["United States of America","GC 6",0,{"v":4320000,"d":"4,320,000"},0,0,0,0,0,{"$f":"IF(SUM(Table25[[#This Row],[Taxes]:[Infrastructure Improvement Payments]])=0,\"\",SUM(Table25[[#This Row],[Taxes]:[Infrastructure Improvement Payments]]))","v":{"v":4320000,"d":"4,320,000"}}]
["United States of America","Gunnison",0,0,{"v":70000,"d":"70,000"},0,0,0,0,{"$f":"IF(SUM(Table25[[#This Row],[Taxes]:[Infrastructure Improvement Payments]])=0,\"\",SUM(Table25[[#This Row],[Taxes]:[Infrastructure Improvement Payments]]))","v":{"v":70000,"d":"70,000"}}]
["United States of America","HI 474/489",0,{"v":280000,"d":"280,000"},0,0,0,0,0,{"$f":"IF(SUM(Table25[[#This Row],[Taxes]:[Infrastructure Improvement Payments]])=0,\"\",SUM(Table25[[#This Row],[Taxes]:[Infrastructure Improvement Payments]]))","v":{"v":280000,"d":"280,000"}}]
["United States of America","HI 563/582",0,{"v":250000,"d":"250,000"},0,0,0,0,0,{"$f":"IF(SUM(Table25[[#This Row],[Taxes]:[Infrastructure Improvement Payments]])=0,\"\",SUM(Table25[[#This Row],[Taxes]:[Infrastructure Improvement Payments]]))","v":{"v":250000,"d":"250,000"}}]
["United States of America","Longhorn",0,{"v":8910000,"d":"8,910,000"},0,0,0,0,0,{"$f":"IF(SUM(Table25[[#This Row],[Taxes]:[Infrastructure Improvement Payments]])=0,\"\",SUM(Table25[[#This Row],[Taxes]:[Infrastructure Improvement Payments]]))","v":{"v":8910000,"d":"8,910,000"}}]
["United States of America","Nanbu",0,0,{"v":310000,"d":"310,000"},0,0,0,0,{"$f":"IF(SUM(Table25[[#This Row],[Taxes]:[Infrastructure Improvement Payments]])=0,\"\",SUM(Table25[[#This Row],[Taxes]:[Infrastructure Improvement Payments]]))","v":{"v":310000,"d":"310,000"}}]
["United States of America","Niobrara",{"v":67360000,"d":"67,360,000"},0,0,0,0,0,0,{"$f":"IF(SUM(Table25[[#This Row],[Taxes]:[Infrastructure Improvement Payments]])=0,\"\",SUM(Table25[[#This Row],[Taxes]:[Infrastructure Improvement Payments]]))","v":{"v":67360000,"d":"67,360,000"}}]
["United States of America","Picketts Mill",0,0,{"v":150000,"d":"150,000"},0,0,0,0,{"$f":"IF(SUM(Table25[[#This Row],[Taxes]:[Infrastructure Improvement Payments]])=0,\"\",SUM(Table25[[#This Row],[Taxes]:[Infrastructure Improvement Payments]]))","v":{"v":150000,"d":"150,000"}}]
["United States of America","Red Dog",0,0,{"v":120000,"d":"120,000"},0,0,0,0,{"$f":"IF(SUM(Table25[[#This Row],[Taxes]:[Infrastructure Improvement Payments]])=0,\"\",SUM(Table25[[#This Row],[Taxes]:[Infrastructure Improvement Payments]]))","v":{"v":120000,"d":"120,000"}}]
["United States of America","SMI 257",0,{"v":5370000,"d":"5,370,000"},0,0,0,0,0,{"$f":"IF(SUM(Table25[[#This Row],[Taxes]:[Infrastructure Improvement Payments]])=0,\"\",SUM(Table25[[#This Row],[Taxes]:[Infrastructure Improvement Payments]]))","v":{"v":5370000,"d":"5,370,000"}}]
["United States of America","Stampede",0,{"v":80630000,"d":"80,630,000"},{"v":70000,"d":"70,000"},0,0,0,0,{"$f":"IF(SUM(Table25[[#This Row],[Taxes]:[Infrastructure Improvement Payments]])=0,\"\",SUM(Table25[[#This Row],[Taxes]:[Infrastructure Improvement Payments]]))","v":{"v":80700000,"d":"80,700,000"}}]
["United States of America","Vicksburg",0,0,{"v":180000,"d":"180,000"},0,0,0,0,{"$f":"IF(SUM(Table25[[#This Row],[Taxes]:[Infrastructure Improvement Payments]])=0,\"\",SUM(Table25[[#This Row],[Taxes]:[Infrastructure Improvement Payments]]))","v":{"v":180000,"d":"180,000"}}]
["United States of America","West Abilene",0,{"v":18380000,"d":"18,380,000"},0,0,0,0,0,{"$f":"IF(SUM(Table25[[#This Row],[Taxes]:[Infrastructure Improvement Payments]])=0,\"\",SUM(Table25[[#This Row],[Taxes]:[Infrastructure Improvement Payments]]))","v":{"v":18380000,"d":"18,380,000"}}]
["United States of America","Wrigley",0,{"v":20000,"d":"20,000"},0,0,0,0,0,{"$f":"IF(SUM(Table25[[#This Row],[Taxes]:[Infrastructure Improvement Payments]])=0,\"\",SUM(Table25[[#This Row],[Taxes]:[Infrastructure Improvement Payments]]))","v":{"v":20000,"d":"20,000"}}]
["United States of America","Aspen",0,0,{"v":90000,"d":"90,000"},0,0,0,0,{"$f":"IF(SUM(Table25[[#This Row],[Taxes]:[Infrastructure Improvement Payments]])=0,\"\",SUM(Table25[[#This Row],[Taxes]:[Infrastructure Improvement Payments]]))","v":{"v":90000,"d":"90,000"}}]
["United States of America","GC 137",0,{"v":-1230000,"d":"-1,230,000"},0,0,0,0,0,{"$f":"IF(SUM(Table25[[#This Row],[Taxes]:[Infrastructure Improvement Payments]])=0,\"\",SUM(Table25[[#This Row],[Taxes]:[Infrastructure Improvement Payments]]))","v":{"v":-1230000,"d":"-1,230,000 "}}]
["United States of America","Various projects",0,0,{"v":1500000,"d":"1,500,000"},0,0,0,0,{"$f":"IF(SUM(Table25[[#This Row],[Taxes]:[Infrastructure Improvement Payments]])=0,\"\",SUM(Table25[[#This Row],[Taxes]:[Infrastructure Improvement Payments]]))","v":{"v":1500000,"d":"1,500,000"}}]
["Colombia","Guando",{"v":5140000,"d":"5,140,000"},0,0,{"v":7660000,"d":"7,660,000"},0,0,0,{"$f":"IF(SUM(Table25[[#This Row],[Taxes]:[Infrastructure Improvement Payments]])=0,\"\",SUM(Table25[[#This Row],[Taxes]:[Infrastructure Improvement Payments]]))","v":{"v":12800000,"d":"12,800,000"}}]
["Guyana","Stabroek ",0,0,{"v":2150000,"d":"2,150,000"},0,0,0,0,{"$f":"IF(SUM(Table25[[#This Row],[Taxes]:[Infrastructure Improvement Payments]])=0,\"\",SUM(Table25[[#This Row],[Taxes]:[Infrastructure Improvement Payments]]))","v":{"v":2150000,"d":"2,150,000"}}]
["Nigeria","OML 138",{"v":38910000,"d":"38,910,000"},{"v":353700000,"d":"353,700,000"},{"v":6130000,"d":"6,130,000"},0,0,0,{"v":690000,"d":"690,000"},{"$f":"IF(SUM(Table25[[#This Row],[Taxes]:[Infrastructure Improvement Payments]])=0,\"\",SUM(Table25[[#This Row],[Taxes]:[Infrastructure Improvement Payments]]))","v":{"v":399430000,"d":"399,430,000"}}]
["Nigeria","OML 130",{"v":77980000,"d":"77,980,000"},0,{"v":202550000,"d":"202,550,000"},0,0,0,0,{"$f":"IF(SUM(Table25[[#This Row],[Taxes]:[Infrastructure Improvement Payments]])=0,\"\",SUM(Table25[[#This Row],[Taxes]:[Infrastructure Improvement Payments]]))","v":{"v":280530000,"d":"280,530,000"}}]
["Canada","Balzac Gas Plant",{"v":380000,"d":"380,000"},0,{"v":690000,"d":"690,000"},0,0,0,0,{"$f":"IF(SUM(Table25[[#This Row],[Taxes]:[Infrastructure Improvement Payments]])=0,\"\",SUM(Table25[[#This Row],[Taxes]:[Infrastructure Improvement Payments]]))","v":{"v":1070000,"d":"1,070,000"}}]
["Canada","Crossfield",0,{"v":10000,"d":"10,000"},{"v":20000,"d":"20,000"},0,0,0,0,{"$f":"IF(SUM(Table25[[#This Row],[Taxes]:[Infrastructure Improvement Payments]])=0,\"\",SUM(Table25[[#This Row],[Taxes]:[Infrastructure Improvement Payments]]))","v":{"v":30000,"d":"30,000"}}]
["Canada","EL1144",0,0,{"v":400000,"d":"400,000"},0,0,0,0,{"$f":"IF(SUM(Table25[[#This Row],[Taxes]:[Infrastructure Improvement Payments]])=0,\"\",SUM(Table25[[#This Row],[Taxes]:[Infrastructure Improvement Payments]]))","v":{"v":400000,"d":"400,000"}}]
["Canada","EL1150",0,0,{"v":420000,"d":"420,000"},0,0,0,0,{"$f":"IF(SUM(Table25[[#This Row],[Taxes]:[Infrastructure Improvement Payments]])=0,\"\",SUM(Table25[[#This Row],[Taxes]:[Infrastructure Improvement Payments]]))","v":{"v":420000,"d":"420,000"}}]
["Canada","Horn River",{"v":2730000,"d":"2,730,000"},0,{"v":9390000,"d":"9,390,000"},0,0,0,0,{"$f":"IF(SUM(Table25[[#This Row],[Taxes]:[Infrastructure Improvement Payments]])=0,\"\",SUM(Table25[[#This Row],[Taxes]:[Infrastructure Improvement Payments]]))","v":{"v":12120000,"d":"12,120,000"}}]
["Canada","Leismer",0,0,{"v":1000000,"d":"1,000,000"},0,0,0,0,{"$f":"IF(SUM(Table25[[#This Row],[Taxes]:[Infrastructure Improvement Payments]])=0,\"\",SUM(Table25[[#This Row],[Taxes]:[Infrastructure Improvement Payments]]))","v":{"v":1000000,"d":"1,000,000"}}]
["Canada","Little Horse",0,0,{"v":90000,"d":"90,000"},0,0,0,0,{"$f":"IF(SUM(Table25[[#This Row],[Taxes]:[Infrastructure Improvement Payments]])=0,\"\",SUM(Table25[[#This Row],[Taxes]:[Infrastructure Improvement Payments]]))","v":{"v":90000,"d":"90,000"}}]
["Canada","Long Lake/K1A",{"v":63170000,"d":"63,170,000"},{"v":103450000,"d":"103,450,000"},{"v":26170000,"d":"26,170,000"},0,0,0,0,{"$f":"IF(SUM(Table25[[#This Row],[Taxes]:[Infrastructure Improvement Payments]])=0,\"\",SUM(Table25[[#This Row],[Taxes]:[Infrastructure Improvement Payments]]))","v":{"v":192790000,"d":"192,790,000"}}]
["Canada","Various projects",{"v":190000,"d":"190,000"},0,{"v":1880000,"d":"1,880,000"},0,0,0,0,{"$f":"IF(SUM(Table25[[#This Row],[Taxes]:[Infrastructure Improvement Payments]])=0,\"\",SUM(Table25[[#This Row],[Taxes]:[Infrastructure Improvement Payments]]))","v":{"v":2070000,"d":"2,070,000"}}]
["Canada","Long Lake",0,0,{"v":1300000,"d":"1,300,000"},0,0,0,0,{"$f":"IF(SUM(Table25[[#This Row],[Taxes]:[Infrastructure Improvement Payments]])=0,\"\",SUM(Table25[[#This Row],[Taxes]:[Infrastructure Improvement Payments]]))","v":{"v":1300000,"d":"1,300,000"}}]
["Canada","Long Lake - Oil Sands",0,0,{"v":730000,"d":"730,000"},0,0,0,0,{"$f":"IF(SUM(Table25[[#This Row],[Taxes]:[Infrastructure Improvement Payments]])=0,\"\",SUM(Table25[[#This Row],[Taxes]:[Infrastructure Improvement Payments]]))","v":{"v":730000,"d":"730,000"}}]
["Canada","Atlantic Canada",0,0,{"v":250000,"d":"250,000"},0,0,0,0,{"$f":"IF(SUM(Table25[[#This Row],[Taxes]:[Infrastructure Improvement Payments]])=0,\"\",SUM(Table25[[#This Row],[Taxes]:[Infrastructure Improvement Payments]]))","v":{"v":250000,"d":"250,000"}}]
["United Kingdom of Great Britain and Northern Ireland","Blackbird",0,0,{"v":120000,"d":"120,000"},0,0,0,0,{"$f":"IF(SUM(Table25[[#This Row],[Taxes]:[Infrastructure Improvement Payments]])=0,\"\",SUM(Table25[[#This Row],[Taxes]:[Infrastructure Improvement Payments]]))","v":{"v":120000,"d":"120,000"}}]
["United Kingdom of Great Britain and Northern Ireland","Buzzard",0,0,{"v":25880000,"d":"25,880,000"},0,0,0,0,{"$f":"IF(SUM(Table25[[#This Row],[Taxes]:[Infrastructure Improvement Payments]])=0,\"\",SUM(Table25[[#This Row],[Taxes]:[Infrastructure Improvement Payments]]))","v":{"v":25880000,"d":"25,880,000"}}]
["United Kingdom of Great Britain and Northern Ireland","Ettrick",0,0,{"v":200000,"d":"200,000"},0,0,0,0,{"$f":"IF(SUM(Table25[[#This Row],[Taxes]:[Infrastructure Improvement Payments]])=0,\"\",SUM(Table25[[#This Row],[Taxes]:[Infrastructure Improvement Payments]]))","v":{"v":200000,"d":"200,000"}}]
["United Kingdom of Great Britain and Northern Ireland","Exploration",0,0,{"v":24920000,"d":"24,920,000"},0,0,0,0,{"$f":"IF(SUM(Table25[[#This Row],[Taxes]:[Infrastructure Improvement Payments]])=0,\"\",SUM(Table25[[#This Row],[Taxes]:[Infrastructure Improvement Payments]]))","v":{"v":24920000,"d":"24,920,000"}}]
["United Kingdom of Great Britain and Northern Ireland","GEAD",0,0,{"v":12430000,"d":"12,430,000"},0,0,0,0,{"$f":"IF(SUM(Table25[[#This Row],[Taxes]:[Infrastructure Improvement Payments]])=0,\"\",SUM(Table25[[#This Row],[Taxes]:[Infrastructure Improvement Payments]]))","v":{"v":12430000,"d":"12,430,000"}}]
["United Kingdom of Great Britain and Northern Ireland","Scott",0,0,{"v":3370000,"d":"3,370,000"},0,0,0,0,{"$f":"IF(SUM(Table25[[#This Row],[Taxes]:[Infrastructure Improvement Payments]])=0,\"\",SUM(Table25[[#This Row],[Taxes]:[Infrastructure Improvement Payments]]))","v":{"v":3370000,"d":"3,370,000"}}]
["United Kingdom of Great Britain and Northern Ireland","Taxes - UK",{"v":4065820000,"d":"4,065,820,000"},0,0,0,0,0,0,{"$f":"IF(SUM(Table25[[#This Row],[Taxes]:[Infrastructure Improvement Payments]])=0,\"\",SUM(Table25[[#This Row],[Taxes]:[Infrastructure Improvement Payments]]))","v":{"v":4065820000,"d":"4,065,820,000"}}]
["United Kingdom of Great Britain and Northern Ireland","Telford",0,0,{"v":140000,"d":"140,000"},0,0,0,0,{"$f":"IF(SUM(Table25[[#This Row],[Taxes]:[Infrastructure Improvement Payments]])=0,\"\",SUM(Table25[[#This Row],[Taxes]:[Infrastructure Improvement Payments]]))","v":{"v":140000,"d":"140,000"}}]
["United Kingdom of Great Britain and Northern Ireland","Rochelle",0,0,{"v":1690000,"d":"1,690,000"},0,0,0,0,{"$f":"IF(SUM(Table25[[#This Row],[Taxes]:[Infrastructure Improvement Payments]])=0,\"\",SUM(Table25[[#This Row],[Taxes]:[Infrastructure Improvement Payments]]))","v":{"v":1690000,"d":"1,690,000"}}]
["Ireland","Exploration",0,0,{"v":1920000,"d":"1,920,000"},0,0,0,0,{"$f":"IF(SUM(Table25[[#This Row],[Taxes]:[Infrastructure Improvement Payments]])=0,\"\",SUM(Table25[[#This Row],[Taxes]:[Infrastructure Improvement Payments]]))","v":{"v":1920000,"d":"1,920,000"}}]
["Senegal","Exploration",0,0,{"v":5250000,"d":"5,250,000"},0,0,0,0,{"$f":"IF(SUM(Table25[[#This Row],[Taxes]:[Infrastructure Improvement Payments]])=0,\"\",SUM(Table25[[#This Row],[Taxes]:[Infrastructure Improvement Payments]]))","v":{"v":5250000,"d":"5,250,000"}}]
["Ghana","Exploration",0,0,{"v":70000,"d":"70,000"},0,0,0,0,{"$f":"IF(SUM(Table25[[#This Row],[Taxes]:[Infrastructure Improvement Payments]])=0,\"\",SUM(Table25[[#This Row],[Taxes]:[Infrastructure Improvement Payments]]))","v":{"v":70000,"d":"70,000"}}]
[]
[null,"Total",{"$f":"SUBTOTAL(109,C10:C78)","v":{"v":25447340000,"d":"25,447,340,000"}},{"$f":"SUBTOTAL(109,D10:D78)","v":{"v":1443610000,"d":"1,443,610,000"}},{"v":434560000,"d":"434,560,000"},{"v":1209690000,"d":"1,209,690,000"},{"v":264290000,"d":"264,290,000"},0,{"v":690000,"d":"690,000"},{"$f":"IF(SUM(Table25[[#This Row],[Taxes]:[Infrastructure Improvement Payments]])=0,\"\",SUM(Table25[[#This Row],[Taxes]:[Infrastructure Improvement Payments]]))","v":{"v":28800180000,"d":"28,800,180,000"}}]
[]
["Additional Notes3:","All payments are reported in CNY and have been rounded to the nearest CNY10,000. Where payments were made in currencies other than CNY, the payments were converted into CNY using a weighted average of the exchange rates during the period. The weighted average exchange rate used was CNY 6.6201 to USD 1.00.",{"$nulls":25},"Benin"]
["1 Enter the project that the payment is attributed to. Some payments may not be attributable to a specific project, and do not need to be disclosed in the \"Payments by Project\" table.",{"$nulls":26},"Bermuda"]
["2 When payments are made in-kind, the notes field must highlight which payment includes in-kind contributions and the method for calculating the value of the payment.",{"$nulls":26},"Bolivia, Plurinational State of"]
["3 Any payments made in currencies other than the report currency must be identified. The Reporting Entity may use the \"Additional Notes\" row or the \"Notes\" column to identify any payments that are converted, along with the exchange rate and primary method used for currency conversions.",{"$nulls":26},"Bonaire, Sint Eustatius and Saba"]
[{"$nulls":27},"Bosnia and Herzegovina"]
[{"$nulls":27},"Botswana"]
[]
[{"$nulls":27},"Brazil"]
[{"$nulls":27},"British Indian Ocean Territory"]
[{"$nulls":27},"Brunei Darussalam"]
[{"$nulls":27},"Bulgaria"]
[{"$nulls":27},"Burkina Faso"]
[{"$nulls":27},"Burundi"]
[{"$nulls":27},"Cabo Verde"]
[{"$nulls":27},"Cambodia"]
[{"$nulls":27},"Cameroon"]
[{"$nulls":27},"Cayman Islands"]
[{"$nulls":27},"Central African Republic"]
[{"$nulls":27},"Chad"]
[{"$nulls":27},"Chile"]
[{"$nulls":27},"China"]
[{"$nulls":27},"Christmas Island"]
[{"$nulls":27},"Cocos (Keeling) Islands"]
[{"$nulls":27},"Colombia"]
[{"$nulls":27},"Comoros"]
[{"$nulls":27},"Congo"]
[{"$nulls":27},"Congo, the Democratic Republic of the"]
[{"$nulls":27},"Cook Islands"]
[{"$nulls":27},"Costa Rica"]
[{"$nulls":27},"Côte d'Ivoire"]
[{"$nulls":27},"Croatia"]
[{"$nulls":27},"Cuba"]
[{"$nulls":27},"Curaçao"]
[{"$nulls":27},"Cyprus"]
[{"$nulls":27},"Czechia"]
[{"$nulls":27},"Denmark"]
[{"$nulls":27},"Djibouti"]
[{"$nulls":27},"Dominica"]
[{"$nulls":27},"Dominican Republic"]
[{"$nulls":27},"Ecuador"]
[{"$nulls":27},"Egypt"]
[{"$nulls":27},"El Salvador"]
[{"$nulls":27},"Equatorial Guinea"]
[{"$nulls":27},"Eritrea"]
[{"$nulls":27},"Estonia"]
[{"$nulls":27},"Ethiopia"]
[{"$nulls":27},"Falkland Islands (Malvinas)"]
[{"$nulls":27},"Faroe Islands"]
[{"$nulls":27},"Fiji"]
[{"$nulls":27},"Finland"]
[{"$nulls":27},"France"]
[{"$nulls":27},"French Guiana"]
[{"$nulls":27},"French Polynesia"]
[{"$nulls":27},"French Southern Territories"]
[{"$nulls":27},"Gabon"]
[{"$nulls":27},"Gambia"]
[{"$nulls":27},"Georgia"]
[{"$nulls":27},"Germany"]
[{"$nulls":27},"Ghana"]
[{"$nulls":27},"Gibraltar"]
[{"$nulls":27},"Greece"]
[{"$nulls":27},"Greenland"]
[{"$nulls":27},"Grenada"]
[{"$nulls":27},"Guadeloupe"]
[{"$nulls":27},"Guam"]
[{"$nulls":27},"Guatemala"]
[{"$nulls":27},"Guernsey"]
[{"$nulls":27},"Guinea"]
[{"$nulls":27},"Guinea-Bissau"]
[{"$nulls":27},"Guyana"]
[{"$nulls":27},"Haiti"]
[{"$nulls":27},"Heard Island and McDonald Islands"]
[{"$nulls":27},"Holy See"]
[{"$nulls":27},"Honduras"]
[{"$nulls":27},"Hong Kong"]
[{"$nulls":27},"Hungary"]
[{"$nulls":27},"Iceland"]
[{"$nulls":27},"India"]
[{"$nulls":27},"Indonesia"]
[{"$nulls":27},"Iran, Islamic Republic of"]
[{"$nulls":27},"Iraq"]
[{"$nulls":27},"Ireland"]
[{"$nulls":27},"Isle of Man"]
[{"$nulls":27},"Israel"]
[{"$nulls":27},"Italy"]
[{"$nulls":27},"Jamaica"]
[{"$nulls":27},"Japan"]
[{"$nulls":27},"Jersey"]
[{"$nulls":27},"Jordan"]
[{"$nulls":27},"Kazakhstan"]
[{"$nulls":27},"Kenya"]
[{"$nulls":27},"Kiribati"]
[{"$nulls":27},"Korea, Democratic People's Republic of"]
[{"$nulls":27},"Korea, Republic of"]
[{"$nulls":27},"Kuwait"]
[{"$nulls":27},"Kyrgyzstan"]
[{"$nulls":27},"Lao People's Democratic Republic"]
[{"$nulls":27},"Latvia"]
[{"$nulls":27},"Lebanon"]
[{"$nulls":27},"Lesotho"]
[{"$nulls":27},"Liberia"]
[{"$nulls":27},"Libya"]
[{"$nulls":27},"Liechtenstein"]
[{"$nulls":27},"Lithuania"]
[{"$nulls":27},"Luxembourg"]
[{"$nulls":27},"Macao"]
[{"$nulls":27},"Macedonia, the former Yugoslav Republic of"]
[{"$nulls":27},"Madagascar"]
[{"$nulls":27},"Malawi"]
[{"$nulls":27},"Malaysia"]
[{"$nulls":27},"Maldives"]
[{"$nulls":27},"Mali"]
[{"$nulls":27},"Malta"]
[{"$nulls":27},"Marshall Islands"]
[{"$nulls":27},"Martinique"]
[{"$nulls":27},"Mauritania"]
[{"$nulls":27},"Mauritius"]
[{"$nulls":27},"Mayotte"]
[{"$nulls":27},"Mexico"]
[{"$nulls":27},"Micronesia, Federated States of"]
[{"$nulls":27},"Moldova, Republic of"]
[{"$nulls":27},"Monaco"]
[{"$nulls":27},"Mongolia"]
[{"$nulls":27},"Montenegro"]
[{"$nulls":27},"Montserrat"]
[{"$nulls":27},"Morocco"]
[{"$nulls":27},"Mozambique"]
[{"$nulls":27},"Myanmar"]
[{"$nulls":27},"Namibia"]
[{"$nulls":27},"Nauru"]
[{"$nulls":27},"Nepal"]
[{"$nulls":27},"Netherlands"]
[{"$nulls":27},"New Caledonia"]
[{"$nulls":27},"New Zealand"]
[{"$nulls":27},"Nicaragua"]
[{"$nulls":27},"Niger"]
[{"$nulls":27},"Nigeria"]
[{"$nulls":27},"Niue"]
[{"$nulls":27},"Norfolk Island"]
[{"$nulls":27},"Northern Mariana Islands"]
[{"$nulls":27},"Norway"]
[{"$nulls":27},"Oman"]
[{"$nulls":27},"Pakistan"]
[{"$nulls":27},"Palau"]
[{"$nulls":27},"Palestine, State of"]
[{"$nulls":27},"Panama"]
[{"$nulls":27},"Papua New Guinea"]
[{"$nulls":27},"Paraguay"]
[{"$nulls":27},"Peru"]
[{"$nulls":27},"Philippines"]
[{"$nulls":27},"Pitcairn"]
[{"$nulls":27},"Poland"]
[{"$nulls":27},"Portugal"]
[{"$nulls":27},"Puerto Rico"]
[{"$nulls":27},"Qatar"]
[{"$nulls":27},"Réunion"]
[{"$nulls":27},"Romania"]
[{"$nulls":27},"Russian Federation"]
[{"$nulls":27},"Rwanda"]
[{"$nulls":27},"Saint Barthélemy"]
[{"$nulls":27},"Saint Helena, Ascension and Tristan da Cunha"]
[{"$nulls":27},"Saint Kitts and Nevis"]
[{"$nulls":27},"Saint Lucia"]
[{"$nulls":27},"Saint Martin (French part)"]
[{"$nulls":27},"Saint Pierre and Miquelon"]
[{"$nulls":27},"Saint Vincent and the Grenadines"]
[{"$nulls":27},"Samoa"]
[{"$nulls":27},"San Marino"]
[{"$nulls":27},"Sao Tome and Principe"]
[{"$nulls":27},"Saudi Arabia"]
[{"$nulls":27},"Senegal"]
[{"$nulls":27},"Serbia"]
[{"$nulls":27},"Seychelles"]
[{"$nulls":27},"Sierra Leone"]
[{"$nulls":27},"Singapore"]
[{"$nulls":27},"Sint Maarten (Dutch part)"]
[{"$nulls":27},"Slovakia"]
[{"$nulls":27},"Slovenia"]
[{"$nulls":27},"Solomon Islands"]
[{"$nulls":27},"Somalia"]
[{"$nulls":27},"South Africa"]
[{"$nulls":27},"South Georgia and the South Sandwich Islands"]
[{"$nulls":27},"South Sudan"]
[{"$nulls":27},"Spain"]
[{"$nulls":27},"Sri Lanka"]
[{"$nulls":27},"Sudan"]
[{"$nulls":27},"Suriname"]
[{"$nulls":27},"Svalbard and Jan Mayen"]
[{"$nulls":27},"Swaziland"]
[{"$nulls":27},"Sweden"]
[{"$nulls":27},"Switzerland"]
[{"$nulls":27},"Syrian Arab Republic"]
[{"$nulls":27},"Taiwan, Province of China"]
[{"$nulls":27},"Tajikistan"]
[{"$nulls":27},"Tanzania, United Republic of"]
[{"$nulls":27},"Thailand"]
[{"$nulls":27},"Timor-Leste"]
[{"$nulls":27},"Togo"]
[{"$nulls":27},"Tokelau"]
[{"$nulls":27},"Tonga"]
[{"$nulls":27},"Trinidad and Tobago"]
[{"$nulls":27},"Tunisia"]
[{"$nulls":27},"Turkey"]
[{"$nulls":27},"Turkmenistan"]
[{"$nulls":27},"Turks and Caicos Islands"]
[{"$nulls":27},"Tuvalu"]
[{"$nulls":27},"Uganda"]
[{"$nulls":27},"Ukraine"]
[{"$nulls":27},"United Arab Emirates"]
[{"$nulls":27},"United Kingdom of Great Britain and Northern Ireland"]
[{"$nulls":27},"United States Minor Outlying Islands"]
[{"$nulls":27},"United States of America"]
[{"$nulls":27},"Uruguay"]
[{"$nulls":27},"Uzbekistan"]
[{"$nulls":27},"Vanuatu"]
[{"$nulls":27},"Venezuela, Bolivarian Republic of"]
[{"$nulls":27},"Viet Nam"]
[{"$nulls":27},"Virgin Islands, British"]
[{"$nulls":27},"Virgin Islands, U.S."]
[{"$nulls":27},"Wallis and Futuna"]
[{"$nulls":27},"Western Sahara"]
[{"$nulls":27},"Yemen"]
[{"$nulls":27},"Zambia"]
[{"$nulls":27},"Zimbabwe"]

{"sheet":"Sheet2","index":4,"n_rows":0,"n_cols":0,"rows_kept":0,"hidden":true}